Cogmind - Beta 9.3 @@@ ROGUE MODE // 2019.12.22 @ 19:29:54 // Winter2019/RPGLIKE Player: spruce (@macklemurr) Result: Destroyed by G-73 Enforcer with Heavy Laser Performance ------------- Evolutions (8) 4000 Regions Visited (30) 6000 Robots Destroyed (705) 3525 Value Destroyed (37859) 37859 Prototype IDs (233) 4660 Alien Tech Used (6) 1200 Bonus (31062) 31062 TOTAL SCORE: 88306 Bonus ------- Triggered High Security 500 High Alert Combat Kills 13068 Follower Combat Kills 652 Network Hubs Disabled 600 Met Data Miner 300 Used Data Conduit 3000 Met Imprinter 300 Built Enhanced Grunts 300 Met R17 at Cetus 500 Found Hidden Lab 3000 Decrypted A0 Command 3000 Met R17 at Research 2000 Scanned by Researcher 1000 Pursued by Intercept 3000 Met Sigix 2000 Friendly Fire -2158 Cogmind --------- Core Integrity 0/1550 Matter 1/300 Energy 692/700 System Corruption 12% Temperature Cool (30) Movement Flying (28) Location -2/Section 7 Parts ------- > --- POWER (2) -------- Vortex Chain Reactor > --- PROPULSION (5) --- Impulse Thruster Field Propulsion Array Q-thruster Improved Diametric Drive > --- UTILITY (12) ----- Advanced Signal Interpreter Long-range Terrain Scanner Improved Salvage Targeting Computer Advanced Target Analyzer Improved Core Analyzer Advanced Armor Integrity Analyzer Precision Matter Filter Advanced Reaction Control System Experimental Phase Shifter EM Dispersion Field System Mapper Quantum Router > --- WEAPON (6) ------- Linked Autogun Linked Autogun Nanosword > --- INVENTORY (6) ---- Linked Autogun Sigix Containment Pod Peak State ------------ > --- POWER ------------ Vortex Chain Reactor > --- PROPULSION ------- Impulse Thruster Field Propulsion Array Q-thruster Improved Diametric Drive > --- UTILITY ---------- Advanced Signal Interpreter Improved Salvage Targeting Computer Advanced Target Analyzer Improved Core Analyzer Advanced Armor Integrity Analyzer Advanced Reaction Control System Experimental Phase Shifter EM Dispersion Field System Mapper Quantum Router Matter Drive > --- WEAPON ----------- Linked Autogun Linked Autogun Advanced Remote Datajack Nanosword > --- INVENTORY -------- Long-range Terrain Scanner Precision Matter Filter Experimental Force Field Linked Autogun [Rating: 212] Favorites ----------- Power Light Nuclear Core Engine Makeshift Power Source Power Core Light Nuclear Core Reactor Quantum Reactor Propulsion Flight Unit Treads Improved Heavy Siege Treads Leg Enhanced Biometal Leg Flight Unit Flight Unit Utility Advanced Signal Interpreter Device Long-range Terrain Scanner Processor Advanced Signal Interpreter Hackware Hacking Suite Protection Heavy Insulated Plating Artifact Matter Drive Weapon Enhanced Autogun Energy Gun Lightning Gun Energy Cannon Enhanced Nova Cannon Ballistic Gun Enhanced Autogun Ballistic Cannon Mass Driver Launcher Rocket Launcher Special Weapon Advanced Remote Datajack Impact Weapon Shock Maul Slashing Weapon Nanosword Piercing Weapon Spear Special Melee Weapon Datajack Build | -11 -10 -10 -9 -9 -9 -8 -8 -7 -7 -7 -7 -6 -6 -6 -6 -6 -5 -5 -5 -5 -5 -5 -4 -4 -4 -3 -3 -2 -2 -2 ------- Run | Scr Mat Min Mat Min Exi Min Mat Fac Low Low Zio Pro Fac Low Low Dat Pro Fac Ext Cet Arc Hub Fac Arm Lab Res Tes Res Qua Sec Slots Evolved 21 | 3 1 . 1 . 4 . 3 . . . 1 2 2 . . . . . . 1 . . . . . 2 . 1 . . Power 1 | . . . . . 1 . . . . . . . . . . . . . . . . . . . . . . . . . Propulsion 4 | 1 . . . . 1 . . . . . 1 . . . . . . . . . . . . . . 1 . . . . Utility 11 | 1 . . 1 . 2 . 3 . . . . 2 . . . . . . . 1 . . . . . 1 . . . . Weapon 5 | 1 1 . . . . . . . . . . . 2 . . . . . . . . . . . . . . 1 . . Parts Attached 240 | 3 7 4 6 . 3 4 16 26 1 2 3 3 11 5 2 . 1 7 3 5 . 11 11 10 8 7 28 1 25 27 Power 18 | 1 1 1 . . . 1 . 5 . . 1 1 . . 1 . . . . 1 . . 2 1 . . 1 . 1 . Engine 7 | 1 1 . . . . . . 2 . . 1 1 . . . . . . . . . . 1 . . . . . . . Core 8 | . . 1 . . . 1 . 3 . . . . . . . . . . . . . . 1 1 . . 1 . . . Reactor 3 | . . . . . . . . . . . . . . . 1 . . . . 1 . . . . . . . . 1 . Propulsion 30 | . 1 2 . . . 1 . 6 . . 2 . 2 2 . . . . 1 . . 2 2 1 . 1 2 . 1 4 Treads 2 | . . . . . . . . . . . . . . . . . . . . . . . . . . . . . . 2 Leg 1 | . . . . . . . . . . . . . . . . . . . . . . 1 . . . . . . . . Wheel . | . . . . . . . . . . . . . . . . . . . . . . . . . . . . . . . Hover . | . . . . . . . . . . . . . . . . . . . . . . . . . . . . . . . Flight 27 | . 1 2 . . . 1 . 6 . . 2 . 2 2 . . . . 1 . . 1 2 1 . 1 2 . 1 2 Utility 88 | . 2 . 2 . 1 1 7 4 1 2 . 2 2 2 . . . 3 . 4 . 8 4 5 2 3 13 . 10 10 Device 59 | . . . . . 1 1 1 2 . 1 . . . 2 . . . 3 . 1 . 7 3 3 1 3 12 . 9 9 Storage . | . . . . . . . . . . . . . . . . . . . . . . . . . . . . . . . Processor 18 | . 1 . 2 . . . 5 1 . 1 . 2 2 . . . . . . . . 1 1 2 . . . . . . Hackware 8 | . 1 . . . . . 1 1 1 . . . . . . . . . . 2 . . . . 1 . 1 . . . Protection 2 | . . . . . . . . . . . . . . . . . . . . 1 . . . . . . . . 1 . Artifact 1 | . . . . . . . . . . . . . . . . . . . . . . . . . . . . . . 1 Weapon 104 | 2 3 1 4 . 2 1 9 11 . . . . 7 1 1 . 1 4 2 . . 1 3 3 6 3 12 1 13 13 Energy Gun 33 | 2 3 . 4 . 1 1 8 5 . . . . . . . . . 1 . . . . . . 2 . 5 . 1 . Energy Cannon 9 | . . . . . . . 1 . . . . . . . . . . . . . . . . 1 2 1 2 . 1 1 Ballistic Gun 36 | . . . . . . . . 5 . . . . 4 1 . . 1 2 1 . . 1 3 2 2 2 2 1 5 4 Ballistic Cannon 2 | . . . . . . . . . . . . . . . . . . . . . . . . . . . 1 . 1 . Launcher 3 | . . 1 . . . . . . . . . . . . . . . . . . . . . . . . . . . 2 Special Weapon 4 | . . . . . . . . . . . . . . . . . . . . . . . . . . . 1 . 1 2 Impact Weapon 1 | . . . . . . . . . . . . . . . . . . . . . . . . . . . . . . 1 Slashing Weapon 11 | . . . . . . . . 1 . . . . 2 . . . . . . . . . . . . . 1 . 4 3 Piercing Weapon 4 | . . . . . . . . . . . . . 1 . 1 . . 1 1 . . . . . . . . . . . Special Melee Weapon 1 | . . . . . 1 . . . . . . . . . . . . . . . . . . . . . . . . . Unidentified Prototypes 24 | . . . 1 . . . 1 3 . . . . 1 . . . . . . 1 . 2 . . 7 . 5 . 2 1 Parts Lost 5 | . . . 1 . . 1 . 1 . . . . . . . . . . . . . 2 . . . . . . . . Power . | . . . . . . . . . . . . . . . . . . . . . . . . . . . . . . . Propulsion 1 | . . . . . . . . . . . . . . . . . . . . . . 1 . . . . . . . . Utility 2 | . . . . . . . . 1 . . . . . . . . . . . . . 1 . . . . . . . . Weapon 2 | . . . 1 . . 1 . . . . . . . . . . . . . . . . . . . . . . . . Highest Loss Streak 2 | . . . 1 . . 1 . 1 . . . . . . . . . . . . . 2 . . . . . . . . Average Slot Usage (%) 92 | . 68 91 98 100 100 84 94 97 100 100 100 99 99 100 100 100 100 96 97 92 90 89 88 90 88 87 84 86 83 83 Engine 3 | . 13 1 . . . . . 3 6 6 10 10 9 9 7 4 4 4 4 4 4 4 1 . . . . . . . Core 4 | . . 10 11 11 11 12 13 7 6 6 . . . . . . . . . . . . 2 4 4 4 4 4 3 . Reactor 1 | . . . . . . . . . . . . . . . 1 4 4 4 4 4 4 4 4 4 4 4 4 4 4 4 Flight 17 | . 7 16 22 22 22 19 19 18 18 18 22 22 19 19 19 19 19 19 16 13 13 11 11 13 13 12 15 16 16 15 Device 9 | . . . . . . 6 7 8 6 6 5 5 4 4 4 4 4 9 14 13 13 17 15 13 11 16 16 16 19 19 Processor 24 | . 8 12 19 22 22 15 22 29 31 31 29 29 33 33 33 33 33 24 23 22 22 22 24 27 27 25 25 24 20 20 Hackware 9 | . 7 12 11 11 11 7 11 10 12 12 11 10 9 9 9 9 9 9 9 9 9 9 9 9 9 8 8 8 8 8 Energy Gun 7 | . 30 25 32 33 23 21 17 13 . . . . . . . . . . . . . . . . . . . . . . Ballistic Gun 10 | . . . . . . . . 4 18 18 17 16 19 22 22 19 23 21 22 22 22 18 17 17 15 14 9 9 10 8 Naked Turns . | . . . . . . . . . . . . . . . . . . . . . . . . . . . . . . . Heaviest Build 96 | 7 11 13 13 13 13 19 23 30 28 28 28 26 32 32 33 32 33 37 37 45 45 59 60 58 68 66 80 85 89 96 Greatest Support 93 | 13 14 18 18 18 18 22 28 34 30 30 38 38 38 36 36 40 40 41 45 45 45 59 64 65 65 78 78 86 93 93 Greatest Overweight (x) 2 | . . . . . . 1 1 1 . . . . . . . . . . . . . 2 2 . 1 2 2 . 1 2 Average Overweight (x) . | . . . . . . . . . . . . . . . . . . . . . . . . . . . . . . . Largest Inventory Capacity 6 | 2 2 2 2 2 2 2 2 2 2 2 2 2 3 3 4 4 4 4 4 4 4 4 4 5 5 5 5 5 5 6 Average Capacity 3 | 1 2 2 2 2 2 2 2 2 2 2 2 2 2 3 3 4 4 4 4 4 4 4 4 4 5 5 5 5 5 5 Most Carried 6 | . 2 2 2 2 2 2 2 2 2 2 2 2 3 3 4 4 4 4 4 4 4 4 4 5 5 5 5 4 5 6 Average Carried 2 | . 1 1 1 2 1 1 1 1 1 2 2 1 2 3 3 4 4 3 4 4 4 3 3 4 4 3 4 3 4 5 Final Capacity 6 | 2 2 2 2 2 2 2 2 2 2 2 2 2 3 3 4 4 4 4 4 4 4 4 4 5 5 5 5 5 5 6 Final Carried 5 | . 2 1 2 2 1 1 2 1 2 2 2 2 3 3 4 4 4 4 4 4 4 3 4 5 5 4 4 4 5 4 Class Distribution -------------------- 53% | Hacker-Scout 9% | Wizard-Scout 7% | Hacker-Gunner 5% | Scavenger-Gunner 4% | Hacker-Skirmisher 4% | Hacker-Mutant 3% | Wizard-Gunner Dominant Class ---------------- Mutant | -10/Materials Hacker-Mutant | -10/Mines Scavenger-Gunner | -9/Materials Scavenger-Gunner | -9/Mines Scavenger-Mutant | -9/Exiles Scavenger-Scout | -8/Mines Hacker-Scout | -8/Materials Hacker-Scout | -7/Factory Hacker-Scout | -7/Lower Caves Hacker-Scout | -7/Lower Caves Hacker-Scout | -7/Zion Hacker-Scout | -6/Proximity Caves Hacker-Scout | -6/Factory Hacker-Scout | -6/Lower Caves Hacker-Scout | -6/Lower Caves Hacker-Scout | -6/Data Miner Hacker-Scout | -5/Proximity Caves Hacker-Scout | -5/Factory Hacker-Scout | -5/Extension Hacker-Scout | -5/Cetus Hacker-Scout | -5/Archives Hacker-Sprinter | -5/Hub_04(d) Hacker-Scout | -4/Factory Hacker-Scout | -4/Armory Hacker-Scout | -4/Lab Hacker-Scout | -3/Research Wizard-Scout | -3/Testing Wizard-Scout | -2/Research Wizard-Scout | -2/Quarantine Wizard-Scout | -2/Section 7 Resources | -11 -10 -10 -9 -9 -9 -8 -8 -7 -7 -7 -7 -6 -6 -6 -6 -6 -5 -5 -5 -5 -5 -5 -4 -4 -4 -3 -3 -2 -2 -2 ----------- Run | Scr Mat Min Mat Min Exi Min Mat Fac Low Low Zio Pro Fac Low Low Dat Pro Fac Ext Cet Arc Hub Fac Arm Lab Res Tes Res Qua Sec Matter Collected 17354 | 223 77 84 60 . . 65 160 515 . 441 30 499 1141 346 572 . 541 452 660 260 90 1699 1149 749 . 986 1387 430 2360 2378 Remotely 2618 | . . . . . . . . . . . . . . . . . . 132 660 260 90 1476 . . . . . . . . Salvage Created 35288 | . 571 173 1203 209 . 332 1813 2492 40 827 . 738 1450 369 949 . 907 925 1382 458 . 2865 2062 1229 . 1551 1722 1932 3764 5325 Parts 1878 | . 37 8 95 17 . 18 100 118 2 39 . 66 112 29 48 . 49 47 80 39 3 130 89 86 . 89 94 74 159 250 Haulers Intercepted 9 | . 1 . . . . . 3 2 . . . . . . . . . 1 . . . 1 . . . 1 . . . . Recyclers Shooed 3 | . 1 . . . . . . . . . . . 1 . . . . . . . . 1 . . . . . . . . Parts Field Recycled . | . . . . . . . . . . . . . . . . . . . . . . . . . . . . . . . Retrieved Matter . | . . . . . . . . . . . . . . . . . . . . . . . . . . . . . . . Parts Self-Destructed 254 | . . . . . . . . . 11 39 . 72 . 29 51 . 52 . . . . . . . . . . . . . Prevented 1 | . . . . . . . . . . . . 1 . . . . . . . . . . . . . . . . . . Kills | -11 -10 -10 -9 -9 -9 -8 -8 -7 -7 -7 -7 -6 -6 -6 -6 -6 -5 -5 -5 -5 -5 -5 -4 -4 -4 -3 -3 -2 -2 -2 ------- Run | Scr Mat Min Mat Min Exi Min Mat Fac Low Low Zio Pro Fac Low Low Dat Pro Fac Ext Cet Arc Hub Fac Arm Lab Res Tes Res Qua Sec Combat Hostiles Destroyed 596 | . 18 22 33 8 . 9 37 47 2 17 . 21 24 11 19 . 17 13 22 7 1 38 22 21 . 20 21 21 46 79 Melee 4 | . . . . . . . . . . . . . 2 . . . . . . . . . 1 1 . . . . . . Guns 554 | . 18 7 31 8 . 9 30 34 2 17 . 21 22 11 19 . 17 13 22 7 1 37 21 20 . 20 21 21 46 79 AOE 27 | . . 15 2 . . . 5 4 . . . . . . . . . . . . . 1 . . . . . . . . Classes Destroyed 24 | . 4 2 5 1 . 1 2 3 . . . . . . . . . . 1 . . . 1 1 . . 1 . 1 1 Worker 18 | . . . 1 . . . 1 1 . . . . 7 . . . . . . . . 2 . . . 2 . 1 3 . Builder 19 | . . . 2 . . . 2 . . . . . 4 . . . . 1 1 . . . . . . 2 . 3 2 2 Tunneler 2 | . . . . . . . 2 . . . . . . . . . . . . . . . . . . . . . . . Hauler 9 | . 1 . . . . . 3 2 . . . . . . . . . 1 . . . 1 . . . 1 . . . . Recycler 11 | . . . . . . 2 1 2 . . . . 2 . . . . 1 1 . . . . . . . 2 . . . Mechanic 2 | . . . . . . . . 1 . . . . 1 . . . . . . . . . . . . . . . . . Operator 9 | . 2 . 1 . . . . . . . . . . . . . . 1 . . . 3 . . . . 1 . 1 . Watcher 34 | . . . 3 . . . 3 4 . . . . 1 . . . . . 2 1 . 3 1 4 . 2 3 1 3 3 Swarmer 107 | . 6 3 8 6 . 6 4 13 2 3 . 10 6 3 5 . 1 . . . . . . . . 8 5 . 4 14 Saboteur 8 | . . . . . . . . . . . . . . . . . . . . . . . 1 5 . . . . . 2 Grunt 254 | . 12 . 20 1 . 2 19 20 . 4 . 4 13 3 13 . 12 10 15 . . 23 11 10 . 4 4 14 17 23 Brawler 11 | . . . . 1 . 1 . 1 . 1 . . . 1 1 . 1 . . . . . . 1 . . . . 1 2 Duelist 32 | . . . . . . . 4 1 . 4 . 6 2 2 . . 1 . . . . 1 4 . . . . 1 3 3 Protector 5 | . . . 1 . . . 1 . . . . . . . . . . . . . . 2 . . . . . . . 1 Researcher 3 | . . . . . . . . . . . . . . . . . . . . . . . . . . . 1 . 1 1 Sentry 59 | . . . 4 . . . 9 8 . 2 . . 3 1 . . 2 2 4 . 1 4 4 1 . 2 . 6 . 6 Demolisher 3 | . . 1 . . . . . . . . . . . . . . . . . . . . . 2 . . . . . . Specialist 2 | . . . . . . . . . . . . . . . . . . . . . . . . 2 . . . . . . Hunter 17 | . . . . . . . . 3 . 2 . 1 . . . . . 1 2 . . . . . . 2 2 . 2 2 Programmer 18 | . . . . . . . . 1 . 1 . . . 1 . . . . . . . . . . . 1 3 . 5 6 Behemoth 2 | . . . . . . . . . . . . . . . . . . . 1 . . . . . . . . . . 1 Cetus Guard 7 | . . . . . . . . . . . . . . . . . . . . 7 . . . . . . . . . . Lightning 9 | . . . . . . . . . . . . . . . . . . . . . . 6 . . . . . . 3 . Tracker 20 | . . . . . . . . . . . . . . . . . . . . . . 1 1 . . 2 3 . 5 8 Combat Programmer 20 | . . . . . . . . . . . . . . . . . . . . . . 1 1 . . 1 3 . 5 9 Alpha 7 2 | . . . . . . . . . . . . . . . . . . . . . . . . . . . . . . 2 Fortress 1 | . . . . . . . . . . . . . . . . . . . . . . . . . . . . . 1 . Protovariant L 1 | . . . . . . . . . . . . . . . . . . . . . . . . . . . 1 . . . Assembled 18 | . . 18 . . . . . . . . . . . . . . . . . . . . . . . . . . . . Wasp 1 | . . . . . . . . . . . . 1 . . . . . . . . . . . . . . . . . . Wizard 1 | . . . . . . . . . . . . 1 . . . . . . . . . . . . . . . . . . Best Kill Streak 29 | . 6 18 10 3 . 5 13 7 2 13 . 6 9 8 7 . 9 9 12 5 1 12 8 9 . 6 7 19 22 29 Combat Bots Only 29 | . 6 18 8 3 . 3 8 6 2 13 . 6 5 8 7 . 9 6 8 4 1 10 8 7 . 5 5 17 16 29 Max Kills in Single Turn 7 | . 2 7 2 1 . 2 3 2 1 1 . 2 2 1 2 . 2 2 2 2 1 2 2 2 . 2 2 3 3 2 Gunslinging 1 | . 1 1 . . . 1 . 1 . . . 1 . . 1 . 1 1 1 . . 1 1 . . . 1 . 1 1 Exploded 7 | . . 7 1 . . . 3 1 . . . . . . . . . . . . . 1 . . . . . . . . Melee 1 | . . . . . . . . . . . . . 1 . . . . . . . . . 1 1 . . . . . . Uniques/NPCs Destroyed . | . . . . . . . . . . . . . . . . . . . . . . . . . . . . . . . Combat | -11 -10 -10 -9 -9 -9 -8 -8 -7 -7 -7 -7 -6 -6 -6 -6 -6 -5 -5 -5 -5 -5 -5 -4 -4 -4 -3 -3 -2 -2 -2 -------- Run | Scr Mat Min Mat Min Exi Min Mat Fac Low Low Zio Pro Fac Low Low Dat Pro Fac Ext Cet Arc Hub Fac Arm Lab Res Tes Res Qua Sec Damage Taken 20297 | . 681 484 793 220 . 208 1257 1924 43 692 . 1002 1438 281 499 . 429 486 364 419 30 1894 1191 287 . 201 347 276 864 3987 Core 16303 | . 564 380 643 169 . 167 1028 1575 33 559 . 811 1138 223 409 . 346 395 289 339 24 1552 950 217 . 158 265 215 701 3153 Absorbed by Shields 3893 | . . . . . . . . . . . . . . 64 . . . . 187 51 . 117 56 265 . 189 336 263 448 1917 Redirected to Core 13802 | . 361 357 511 163 . 135 820 1192 33 471 . 678 1053 194 321 . 296 323 262 290 24 1257 843 217 . 135 246 215 578 2827 Core Remaining (%) 91 | 100 . 71 . . . 85 87 . . . . 90 . . . . 100 . . . . 100 . . 92 . 100 . . . Volleys Fired 1594 | . 69 21 69 17 . 15 87 100 3 43 . 63 71 24 35 . 34 33 62 21 9 128 61 41 3 51 93 43 162 236 Largest 5 | . 3 2 3 3 . 3 3 3 3 3 . 3 5 4 5 . 5 5 5 5 5 5 4 4 1 4 3 3 3 3 Hottest 171 | . 130 80 148 148 . 148 171 165 75 75 . 75 125 100 125 . 125 125 125 125 125 125 105 120 120 120 100 90 90 113 Shots Fired 4847 | . 143 38 193 51 . 43 203 294 9 128 . 189 305 95 172 . 168 151 310 105 45 522 244 160 3 169 194 93 356 464 Gun 4833 | . 143 34 193 51 . 43 203 294 9 128 . 189 305 95 172 . 168 151 310 105 45 522 244 159 . 168 191 93 356 462 Cannon 8 | . . . . . . . . . . . . . . . . . . . . . . . . 1 3 1 2 . . 1 Launcher 4 | . . 4 . . . . . . . . . . . . . . . . . . . . . . . . . . . . Special 2 | . . . . . . . . . . . . . . . . . . . . . . . . . . . 1 . . 1 Kinetic 3949 | . . . . . . . . 85 9 128 . 189 305 95 172 . 168 151 310 105 45 522 244 159 . 168 183 93 356 462 Thermal 275 | . 123 . 22 17 . 15 82 . . . . . . . . . . . . . . . . 1 3 1 10 . . 1 Explosive 4 | . . 4 . . . . . . . . . . . . . . . . . . . . . . . . . . . . Electromagnetic 617 | . 20 34 171 34 . 28 121 209 . . . . . . . . . . . . . . . . . . . . . . Robot Hit Streak 98 | . 23 7 27 14 . 11 82 45 4 30 . 24 26 23 11 . 21 29 32 31 22 54 52 62 . 24 30 69 98 91 Robot Miss Streak 6 | . 4 4 3 2 . 1 2 2 2 2 . 4 4 5 5 . 4 2 3 2 2 4 2 3 . 3 2 1 6 3 Penetration Max . | . . . . . . . . . . . . . . . . . . . . . . . . . . . . . . . Secondary Targets 129 | . 3 4 1 1 . 2 2 9 . 9 . 6 4 2 8 . 5 5 9 2 . 12 3 3 . . 5 5 10 19 Max Gunslinging Chain 2 | . 1 1 1 1 . 1 1 1 . 1 . 1 1 1 2 . 1 2 2 1 . 1 1 1 . . 1 1 1 1 Shots Hit Robots 3890 | . 96 24 145 34 7 33 173 241 4 114 . 140 219 60 96 1 125 120 242 95 37 419 209 127 . 115 161 86 332 435 Core Hits 2017 | . 39 40 73 11 . 16 100 96 3 42 . 54 86 24 44 . 50 52 88 40 18 166 84 66 . 66 95 80 253 331 Critical Hits 215 | . . . . . . . . 1 . . . 2 4 . 2 . 2 1 1 1 1 3 21 7 . 17 23 17 49 63 Critical Kills 61 | . . . . . . . . . . . . . 2 . 1 . . . . 1 . 1 2 2 . 11 4 8 13 16 Critical Parts Destroyed 125 | . . . . . . . . 1 . . . 2 2 . 1 . 2 1 1 . 1 2 15 5 . 6 18 9 25 34 Melee Attacks 65 | . . . . . 7 . . 1 . . . . 21 . 1 1 . . 1 . . . . . . . . . 7 26 Impact . | . . . . . . . . . . . . . . . . . . . . . . . . . . . . . . . Slashing 50 | . . . . . . . . 1 . . . . 16 . . . . . . . . . . . . . . . 7 26 Piercing 8 | . . . . . . . . . . . . . 5 . 1 1 . . 1 . . . . . . . . . . . Sneak Attacks 12 | . . . . . 7 . . . . . . . 4 . . 1 . . . . . . . . . . . . . . Combat Hostiles . | . . . . . . . . . . . . . . . . . . . . . . . . . . . . . . . Follow-up Attacks . | . . . . . . . . . . . . . . . . . . . . . . . . . . . . . . . Damage Inflicted 92400 | . 1201 1041 2158 368 . 602 3747 4882 64 1791 . 2223 4319 1027 1613 125 2154 2242 4299 1754 761 8508 4645 2832 . 3069 5108 3443 11838 16586 Guns 88961 | . 1201 275 1990 368 . 456 3203 4423 64 1791 . 2223 3474 1027 1613 . 2154 2242 4299 1754 761 8296 4494 2832 . 3046 5108 3443 11838 16586 Cannons . | . . . . . . . . . . . . . . . . . . . . . . . . . . . . . . . Explosions 2446 | . . 766 168 . . 146 544 459 . . . . . . . . . . . . . 212 151 . . . . . . . Melee 970 | . . . . . . . . . . . . . 845 . . 125 . . . . . . . . . . . . . . Ramming 23 | . . . . . . . . . . . . . . . . . . . . . . . . . . 23 . . . . Kinetic 78148 | . . . . . . . . 1103 64 1791 . 2223 3474 1027 1613 . 2154 2242 4299 1754 761 8296 4494 2832 . 3046 5108 3443 11838 16586 Thermal 4335 | . 997 . 471 155 . 351 1964 246 . . . . . . . . . . . . . . 151 . . . . . . . Explosive 979 | . . 766 . . . . . 213 . . . . . . . . . . . . . . . . . . . . . . Electromagnetic 7945 | . 204 275 1687 213 . 251 1783 3320 . . . . . . . . . . . . . 212 . . . . . . . . Impact . | . . . . . . . . . . . . . . . . . . . . . . . . . . . . . . . Slashing 621 | . . . . . . . . . . . . . 621 . . . . . . . . . . . . . . . . . Piercing 349 | . . . . . . . . . . . . . 224 . . 125 . . . . . . . . . . . . . . Highest Corruption 17 | . . . . . . . . . . 2 2 . 5 5 5 5 5 . . . . 17 . 1 1 . 1 . 4 12 Average Corruption 5 | . . . . . . . . . . 1 2 . 5 5 5 5 5 . . . . 11 . 1 1 . 1 . 1 6 Corruption Purged . | . . . . . . . . . . . . . . . . . . . . . . . . . . . . . . . Effects 212 | . . . . . . . . . . 4 . . 8 9 17 1 12 . . . . 78 . 1 1 . . . 6 75 Message Errors 19 | . . . . . . . . . . 1 . . 2 1 3 . 1 . . . . 5 . . . . . . 1 5 Matter Fused 24 | . . . . . . . . . . . . . 2 3 4 1 2 . . . . 1 . . . . . . 2 9 Heat Flow Errors 10 | . . . . . . . . . . . . . 1 1 . . . . . . . 2 . . . . . . 1 5 Energy Discharges 10 | . . . . . . . . . . 1 . . . 1 . . . . . . . 2 . . 1 . . . . 5 Data Loss (minor) 8 | . . . . . . . . . . . . . . . . . . . . . . 3 . . . . . . . 5 Data Loss (major) 2 | . . . . . . . . . . . . . . . . . 1 . . . . . . . . . . . . 1 Misfires 2 | . . . . . . . . . . . . . . . . . . . . . . 1 . . . . . . . 1 Alerts 2 | . . . . . . . . . . . . . . . . . . . . . . 1 . . . . . . . 1 Misdirections 14 | . . . . . . . . . . . . . . . . . . . . . . 9 . . . . . . . 5 Targeting Errors 97 | . . . . . . . . . . 1 . . 3 2 8 . 6 . . . . 46 . 1 . . . . 2 28 Weapon Failures 24 | . . . . . . . . . . 1 . . . 1 2 . 2 . . . . 8 . . . . . . . 10 Overload Shots . | . . . . . . . . . . . . . . . . . . . . . . . . . . . . . . . Overflow Damage 211 | . . . . . . . 15 4 . . . . 107 . . 5 . . . . . 7 73 . . . . . . . Projectiles . | . . . . . . . . . . . . . . . . . . . . . . . . . . . . . . . Explosions 99 | . . . . . . . 15 4 . . . . . . . . . . . . . 7 73 . . . . . . . Melee 112 | . . . . . . . . . . . . . 107 . . 5 . . . . . . . . . . . . . . Knockbacks . | . . . . . . . . . . . . . . . . . . . . . . . . . . . . . . . Impact . | . . . . . . . . . . . . . . . . . . . . . . . . . . . . . . . Kinetic . | . . . . . . . . . . . . . . . . . . . . . . . . . . . . . . . Secondary . | . . . . . . . . . . . . . . . . . . . . . . . . . . . . . . . Self-Inflicted Damage 587 | . . . 112 . . 39 76 162 . . . . . . . . . . . . . 126 61 . . 11 . . . . Shots 12 | . . . 3 . . 1 2 3 . . . . . . . . . . . . . 2 1 . . . . . . . Rammed 1 | . . . . . . . . . . . . . . . . . . . . . . . . . . 1 . . . . Targets Rammed 1 | . . . . . . . . . . . . . . . . . . . . . . . . . . 1 . . . . Kicked . | . . . . . . . . . . . . . . . . . . . . . . . . . . . . . . . Crushed . | . . . . . . . . . . . . . . . . . . . . . . . . . . . . . . . Highest Temperature 421 | . 321 75 180 48 . 90 184 144 . 9 . 6 360 156 372 11 180 159 222 155 65 421 300 196 1 249 354 250 338 232 Average Temperature 77 | . 101 27 38 15 . 29 40 42 . 9 . 2 126 56 135 11 64 62 81 74 58 121 115 74 1 93 77 38 106 64 Received Heat Transfer 3701 | . 309 60 288 30 . 54 432 465 . 114 . 72 405 17 186 . 141 135 66 9 9 317 167 33 . 9 . 44 43 296 Effects 7 | . 2 . . . . . . . . . . . 1 . 1 . . . . . . 1 . . . . 2 . . . Shutdowns 3 | . . . . . . . . . . . . . 1 . . . . . . . . 1 . . . . 1 . . . Energy Bleed 1 | . 1 . . . . . . . . . . . . . . . . . . . . . . . . . . . . . Interference 2 | . 1 . . . . . . . . . . . . . . . . . . . . . . . . . 1 . . . Matter Decay 1 | . . . . . . . . . . . . . . . 1 . . . . . . . . . . . . . . . Siege Activations . | . . . . . . . . . . . . . . . . . . . . . . . . . . . . . . . Robots Corrupted 12 | . . . . . . . 3 9 . . . . . . . . . . . . . . . . . . . . . . Combat Hostiles 11 | . . . . . . . 2 9 . . . . . . . . . . . . . . . . . . . . . . Parts Fried 57 | . 2 . 11 1 . 1 8 34 . . . . . . . . . . . . . . . . . . . . . . Impact Corruptions . | . . . . . . . . . . . . . . . . . . . . . . . . . . . . . . . Robots Melted . | . . . . . . . . . . . . . . . . . . . . . . . . . . . . . . . Combat Hostiles . | . . . . . . . . . . . . . . . . . . . . . . . . . . . . . . . Parts Melted 20 | . 9 . 1 . . . 8 . . . . . . . . . . . . . . 1 . . . 1 . . . . Heat Transferred 8521 | . 2960 . 846 333 . 594 3488 200 . . . . . . . . . . . . . . 100 . . . . . . . Parts Sabotaged 4 | . . . . . . . . . . . . . . . . . . . . . . . 2 2 . . . . . . Parts Stolen . | . . . . . . . . . . . . . . . . . . . . . . . . . . . . . . . Parts Stripped . | . . . . . . . . . . . . . . . . . . . . . . . . . . . . . . . Power Chain Reactions 20 | . . . 3 . . 2 7 7 . . . . . . . . . . . . . 1 . . . . . . . . Missiles Intercepted . | . . . . . . . . . . . . . . . . . . . . . . . . . . . . . . . Alert | -11 -10 -10 -9 -9 -9 -8 -8 -7 -7 -7 -7 -6 -6 -6 -6 -6 -5 -5 -5 -5 -5 -5 -4 -4 -4 -3 -3 -2 -2 -2 ------- Run | Scr Mat Min Mat Min Exi Min Mat Fac Low Low Zio Pro Fac Low Low Dat Pro Fac Ext Cet Arc Hub Fac Arm Lab Res Tes Res Qua Sec Peak Influence 2766 | . 452 235 878 621 . 235 659 1082 . . . . 897 . . . . 921 1131 473 380 1763 1112 880 . 541 467 851 1003 2766 Average Influence 611 | . 242 172 487 500 . 120 444 634 . . . . 600 . . . . 330 748 332 342 878 872 695 . 254 291 590 621 1509 Maximum Alert Level 5 | . 2 1 3 2 . 1 2 3 . . . . 3 . . . . 3 4 2 1 5 4 3 . 2 2 3 3 5 Low Security (%) 13 | 100 41 65 18 . . 91 9 . . . . . 2 . . . . 14 . 24 6 10 . . . 37 20 . . . Level 1 19 | . 50 34 19 3 . 8 20 21 . . . . 6 . . . . 59 . 8 93 2 . . . 38 57 21 15 . Level 2 35 | . 7 . 37 96 . . 70 36 . . . . 63 . . . . 24 52 67 . 18 8 46 . 24 22 28 54 7 Level 3 23 | . . . 24 . . . . 42 . . . . 27 . . . . 1 44 . . 46 85 53 . . . 50 30 22 Level 4 3 | . . . . . . . . . . . . . . . . . . . 2 . . 13 6 . . . . . . 27 Level 5 1 | . . . . . . . . . . . . . . . . . . . . . . 9 . . . . . . . 10 High Security 3 | . . . . . . . . . . . . . . . . . . . . . . . . . . . . . . 31 Max Security . | . . . . . . . . . . . . . . . . . . . . . . . . . . . . . . . Squads Dispatched 94 | . 5 . 4 . . . 4 9 . 1 . 1 3 . . . . 1 . . . 7 4 2 . 6 7 1 15 24 Investigation 17 | . 2 . 2 . . . 2 6 . . . . 1 . . . . . . . . 2 . . . 1 . . 1 . Extermination 7 | . . . . . . . . 1 . . . . . . . . . 1 . . . . . 1 . . 1 . 2 1 Reinforcement 15 | . 3 . 1 . . . . . . . . . . . . . . . . . . 2 . 1 . 3 1 1 2 1 Assault 21 | . . . 1 . . . 1 2 . 1 . 1 1 . . . . . . . . . 2 . . . . . 3 9 Garrison 4 | . . . . . . . 1 . . . . . 1 . . . . . . . . 1 . . . . . . . 1 Intercept 30 | . . . . . . . . . . . . . . . . . . . . . . 2 2 . . 2 5 . 7 12 Construction Impeded 2 | . . . . . . . . . . . . . . . . . . . . . . . . . . . 1 . 1 . Haulers Reinforced 2 | . . . . . . . . . . . . . . . . . . . . . . . . . . . . 1 . 1 Stealth | -11 -10 -10 -9 -9 -9 -8 -8 -7 -7 -7 -7 -6 -6 -6 -6 -6 -5 -5 -5 -5 -5 -5 -4 -4 -4 -3 -3 -2 -2 -2 --------- Run | Scr Mat Min Mat Min Exi Min Mat Fac Low Low Zio Pro Fac Low Low Dat Pro Fac Ext Cet Arc Hub Fac Arm Lab Res Tes Res Qua Sec Distress Signals 27 | . 3 . 2 . . . 1 1 . . . . 1 . . . . . 2 2 . 1 . 2 . 3 1 2 3 3 Communications Jammed . | . . . . . . . . . . . . . . . . . . . . . . . . . . . . . . . Distress Signals . | . . . . . . . . . . . . . . . . . . . . . . . . . . . . . . . Times Spotted 786 | . 37 22 47 9 . 9 49 62 3 20 . 25 33 11 21 4 18 16 29 10 4 56 25 29 . 23 26 21 56 121 Peak Tracking Total 19 | . 7 19 8 4 . 3 8 5 3 10 . 8 6 8 6 4 6 4 11 5 2 8 6 9 . 4 6 11 10 19 Tactical Retreats 27 | . 1 . 1 . . . 3 2 . 1 . 3 3 1 . . . . 1 . . 5 . 1 . . . . 1 4 Traps | -11 -10 -10 -9 -9 -9 -8 -8 -7 -7 -7 -7 -6 -6 -6 -6 -6 -5 -5 -5 -5 -5 -5 -4 -4 -4 -3 -3 -2 -2 -2 ------- Run | Scr Mat Min Mat Min Exi Min Mat Fac Low Low Zio Pro Fac Low Low Dat Pro Fac Ext Cet Arc Hub Fac Arm Lab Res Tes Res Qua Sec Traps Triggered 13 | . . . . . . . . 4 . . . . 1 . . . . . 1 . . 1 2 . . 1 2 . . 1 Indirectly . | . . . . . . . . . . . . . . . . . . . . . . . . . . . . . . . Trap Hack Attempts . | . . . . . . . . . . . . . . . . . . . . . . . . . . . . . . . Triggered . | . . . . . . . . . . . . . . . . . . . . . . . . . . . . . . . Disarmed . | . . . . . . . . . . . . . . . . . . . . . . . . . . . . . . . Reprogrammed 6 | . . . . . . . . . . . . . . . . . . 6 . . . . . . . . . . . . Reused 1 | . . . . . . . . . . . . . . . . . . 1 . . . . . . . . . . . . Traps Extracted . | . . . . . . . . . . . . . . . . . . . . . . . . . . . . . . . Installed . | . . . . . . . . . . . . . . . . . . . . . . . . . . . . . . . Triggered 3 | . . . . . . . . 1 . . . . . . . . 1 1 . . . . . . . . . . . . Machines | -11 -10 -10 -9 -9 -9 -8 -8 -7 -7 -7 -7 -6 -6 -6 -6 -6 -5 -5 -5 -5 -5 -5 -4 -4 -4 -3 -3 -2 -2 -2 ---------- Run | Scr Mat Min Mat Min Exi Min Mat Fac Low Low Zio Pro Fac Low Low Dat Pro Fac Ext Cet Arc Hub Fac Arm Lab Res Tes Res Qua Sec Machines Disabled 73 | . 1 . 5 4 . . . 6 . . . . . . 1 . . . 1 . 1 33 3 1 1 . 6 . 2 8 Max in Single Turn 16 | . 1 . 2 1 . . . 4 . . . . . . 1 . . . 1 . . 16 3 1 1 . 1 . 1 1 Garrison Access 10 | . . . . . . . 1 2 . . . . 1 . . . . . . . . 2 . . . 1 1 . 1 1 Network Hub 3 | . . . . . . . . . . . . . . . . . . . . . . 3 . . . . . . . . Machines Sabotaged 1 | . . . . . . . . . . . . . . . . . . . . . . 1 . . . . . . . . Garrisons Compromised . | . . . . . . . . . . . . . . . . . . . . . . . . . . . . . . . Overloaded Fab Kills . | . . . . . . . . . . . . . . . . . . . . . . . . . . . . . . . Fab Network Shutdowns 1 | . . . . . . . . . . . . . . . . . . 1 . . . . . . . . . . . . Hacking | -11 -10 -10 -9 -9 -9 -8 -8 -7 -7 -7 -7 -6 -6 -6 -6 -6 -5 -5 -5 -5 -5 -5 -4 -4 -4 -3 -3 -2 -2 -2 --------- Run | Scr Mat Min Mat Min Exi Min Mat Fac Low Low Zio Pro Fac Low Low Dat Pro Fac Ext Cet Arc Hub Fac Arm Lab Res Tes Res Qua Sec Machines Accessed 119 | . 3 . 5 1 . 1 10 16 3 1 . . 12 1 2 4 . 6 13 2 . 5 1 3 2 3 4 2 13 6 Terminals 76 | . 1 . 3 1 . 1 7 7 . . . . 7 . 1 . . 5 13 2 . 3 1 3 . 2 3 2 11 3 Fabricators 4 | . . . . . . . . 1 . . . . 2 . . . . 1 . . . . . . . . . . . . Repair Stations . | . . . . . . . . . . . . . . . . . . . . . . . . . . . . . . . Recycling Units 13 | . 2 . 2 . . . 2 5 . . . . 2 . . . . . . . . . . . . . . . . . Scanalyzers 4 | . . . . . . . . 1 . . . . . . . . . . . . . . . . . . . . 1 2 Garrison Access 10 | . . . . . . . 1 2 . . . . 1 . . . . . . . . 2 . . . 1 1 . 1 1 Total Hacks 376 | . 3 . 8 2 . 1 26 46 15 1 . . 44 1 3 30 . 13 37 5 . 12 7 19 20 10 9 5 45 14 Successful 259 | . 3 . 7 1 . 1 17 36 15 1 . . 24 1 3 30 . 11 17 5 . 11 5 4 20 6 6 2 29 4 Failed 116 | . . . 1 1 . . 9 10 . . . . 20 . . . . 2 20 . . 1 2 15 . 4 3 3 15 10 Catastrophic 27 | . . . . . . . . 1 . . . . 7 . . . . . 3 . . . 1 6 . . . . 2 7 Database Lockouts 2 | . . . . . . . . . . . . . . . . . . . . . . . . . . . . . 2 . Manual 194 | . 3 . 6 1 . 1 23 20 . . 1 . 30 . . . . 4 21 6 . 8 6 18 . 2 4 3 28 9 Terminals 252 | . 1 . 6 2 . 1 23 29 . . . . 31 . 2 . . 11 37 5 . 8 7 19 . 6 8 5 41 10 Fabricators 14 | . . . . . . . . 5 . . . . 7 . . . . 2 . . . . . . . . . . . . Repair Stations . | . . . . . . . . . . . . . . . . . . . . . . . . . . . . . . . Recycling Units 16 | . 2 . 2 . . . 2 5 . . . . 5 . . . . . . . . . . . . . . . . . Scanalyzers 8 | . . . . . . . . 4 . . . . . . . . . . . . . . . . . . . . 1 3 Garrison Access 18 | . . . . . . . 1 3 . . . . 1 . . . . . . . . 4 . . . 4 1 . 3 1 Terminal Hacks 192 | . . . 4 1 . 1 12 16 15 1 . . 12 1 3 30 . 8 17 5 . 6 5 4 20 3 5 2 20 1 Record 57 | . . . . . . . 1 . 13 . . . 2 . 3 11 . 1 . . . . . . 20 . . . 6 . Part Schematic 14 | . . . . . . 1 . . . . . . . . . 11 . 1 . . . 1 . . . . . . . . Robot Schematic 7 | . . . . . . . . 2 . . . . . . . 5 . . . . . . . . . . . . . . Prototype ID Bank 4 | . . . . . . . . 1 . . . . . . . 3 . . . . . . . . . . . . . . Open Door 19 | . . . . . . . . . 2 1 . . . 1 . . . 1 11 . . . . 1 . . . 1 1 . Level Access Points 1 | . . . . . . . . . . . . . . . . . . . . . . . . . . . 1 . . . Branch Access Points 9 | . . . 1 . . . 1 2 . . . . 1 . . . . 1 . . . . . . . 1 1 1 . . Fabricator Index 1 | . . . . . . . 1 . . . . . . . . . . . . . . . . . . . . . . . Recycling Unit Index 3 | . . . 1 . . . 1 1 . . . . . . . . . . . . . . . . . . . . . . Alert Level 28 | . . . 1 . . . 4 2 . . . . 4 . . . . 1 2 2 . 2 2 2 . 1 1 . 3 1 Unreport Threat 33 | . . . 1 . . . 3 3 . . . . 5 . . . . 1 4 3 . 3 3 1 . . 2 . 4 . Locate Traps 5 | . . . . . . . . 2 . . . . . . . . . 1 . . . . . . . 1 . . 1 . Reprogram Traps 1 | . . . . . . . . . . . . . . . . . . 1 . . . . . . . . . . . . Recall Assault 2 | . . . . . . . . . . . . . . . . . . . . . . . . . . . . . 2 . Hauler Manifests 1 | . . . . . . . . 1 . . . . . . . . . . . . . . . . . . . . . . Registered Components 1 | . . . . . . . . . . . . . . . . . . . . . . . . . . . . . 1 . Zone Layout 6 | . . . . 1 . . 1 2 . . . . . . . . . . . . . . . . . . . . 2 . Fabricator Hacks 10 | . . . . . . . . 4 . . . . 4 . . . . 2 . . . . . . . . . . . . Load Schematic 4 | . . . . . . . . 1 . . . . 2 . . . . 1 . . . . . . . . . . . . Build 6 | . . . . . . . . 3 . . . . 2 . . . . 1 . . . . . . . . . . . . Repair Station Hacks . | . . . . . . . . . . . . . . . . . . . . . . . . . . . . . . . Recycling Unit Hacks 4 | . . . . . . . . . . . . . 4 . . . . . . . . . . . . . . . . . Retrieve Matter 4 | . . . . . . . . . . . . . 4 . . . . . . . . . . . . . . . . . Scanalyzer 7 | . . . . . . . . 4 . . . . . . . . . . . . . . . . . . . . 1 2 Insert Component 5 | . . . . . . . . 2 . . . . . . . . . . . . . . . . . . . . 1 2 Analyze 2 | . . . . . . . . 2 . . . . . . . . . . . . . . . . . . . . . . Garrison Access Hacks 10 | . . . . . . . 1 2 . . . . 1 . . . . . . . . 2 . . . 1 1 . 1 1 Seal Access 10 | . . . . . . . 1 2 . . . . 1 . . . . . . . . 2 . . . 1 1 . 1 1 Unauthorized Hacks 80 | . 6 . 6 . . . 8 21 . . . . 8 . . . . 2 . . . 6 . . . 4 . . 19 . Terminals 21 | . 1 . 1 . . . 2 4 . . . . 2 . . . . 1 . . . 2 . . . 2 . . 6 . Track 2 | . . . . . . . . 1 . . . . . . . . . . . . . . . . . . . . 1 . Assimilate 7 | . 1 . 1 . . . 1 . . . . . . . . . . 1 . . . . . . . 1 . . 2 . Botnet 8 | . . . . . . . 1 2 . . . . 2 . . . . . . . . . . . . 1 . . 2 . Operators 2 | . . . . . . . . 1 . . . . . . . . . . . . . . . . . . . . 1 . Sabotage 2 | . . . . . . . . . . . . . . . . . . . . . . 2 . . . . . . . . Fabricators . | . . . . . . . . . . . . . . . . . . . . . . . . . . . . . . . Repair Stations . | . . . . . . . . . . . . . . . . . . . . . . . . . . . . . . . Recycling Units 12 | . 2 . 2 . . . 2 5 . . . . 1 . . . . . . . . . . . . . . . . . Mask 1 | . . . . . . . . . . . . . 1 . . . . . . . . . . . . . . . . . Tunnel 11 | . 2 . 2 . . . 2 5 . . . . . . . . . . . . . . . . . . . . . . Scanalyzers . | . . . . . . . . . . . . . . . . . . . . . . . . . . . . . . . Garrison Access 3 | . . . . . . . . 1 . . . . . . . . . . . . . 1 . . . . . . 1 . Reprogram 1 | . . . . . . . . . . . . . . . . . . . . . . 1 . . . . . . . . Watchers 2 | . . . . . . . . 1 . . . . . . . . . . . . . . . . . . . . 1 . Data Cores Recovered 3 | . . . . . . . . . . . . . . . . . . . . . . 2 . . . . 1 . . . Used 1 | . . . . . . . . . . . . . . . . . . . . . . 1 . . . . . . . . Hacking Detections 44 | . . . 2 . . . 7 7 . . . . 6 . . . . 1 5 1 . 2 . 1 . 1 1 1 6 3 Full Trace Events 2 | . . . . . . . . 1 . . . . 1 . . . . . . . . . . . . . . . . . Feedback Events 1 | . . . . . . . . 1 . . . . . . . . . . . . . . . . . . . . . . Hackware Fried 1 | . . . . . . . . 1 . . . . . . . . . . . . . . . . . . . . . . Feedback Blocked . | . . . . . . . . . . . . . . . . . . . . . . . . . . . . . . . Robot Schematics Acquired 7 | . . . . . . . . 2 . . . . . . . 5 . . . . . . . . . . . . . . Robots Built . | . . . . . . . . . . . . . . . . . . . . . . . . . . . . . . . Matter . | . . . . . . . . . . . . . . . . . . . . . . . . . . . . . . . Time . | . . . . . . . . . . . . . . . . . . . . . . . . . . . . . . . Total Robot Build Rating . | . . . . . . . . . . . . . . . . . . . . . . . . . . . . . . . Part Schematics Acquired 15 | . . . . . . 1 . 1 . . . . . . . 11 . 1 . . . 1 . . . . . . . . Parts Built 6 | . . . . . . . . 2 . . . . 2 . . . . 2 . . . . . . . . . . . . Matter 1022 | . . . . . . . . 438 . . . . 438 . . . . 146 . . . . . . . . . . . . Time 372 | . . . . . . . . 232 . . . . 116 . . . . 24 . . . . . . . . . . . . Total Part Build Rating 18 | . . . . . . . . 6 . . . . 6 . . . . 6 . . . . . . . . . . . . Parts Repaired . | . . . . . . . . . . . . . . . . . . . . . . . . . . . . . . . Time . | . . . . . . . . . . . . . . . . . . . . . . . . . . . . . . . Parts Recycled . | . . . . . . . . . . . . . . . . . . . . . . . . . . . . . . . Recycled Matter . | . . . . . . . . . . . . . . . . . . . . . . . . . . . . . . . Retrieved Matter . | . . . . . . . . . . . . . . . . . . . . . . . . . . . . . . . Retrieved Components . | . . . . . . . . . . . . . . . . . . . . . . . . . . . . . . . Parts Scanalyzed 2 | . . . . . . . . 2 . . . . . . . . . . . . . . . . . . . . . . Part Schematics Acquired 1 | . . . . . . . . 1 . . . . . . . . . . . . . . . . . . . . . . Parts Damaged . | . . . . . . . . . . . . . . . . . . . . . . . . . . . . . . . Bothacking | -11 -10 -10 -9 -9 -9 -8 -8 -7 -7 -7 -7 -6 -6 -6 -6 -6 -5 -5 -5 -5 -5 -5 -4 -4 -4 -3 -3 -2 -2 -2 ------------ Run | Scr Mat Min Mat Min Exi Min Mat Fac Low Low Zio Pro Fac Low Low Dat Pro Fac Ext Cet Arc Hub Fac Arm Lab Res Tes Res Qua Sec Used RIF Installer . | . . . . . . . . . . . . . . . . . . . . . . . . . . . . . . . Robots Hacked 4 | . . . . . 4 . . . . . . . . . . . . . . . . . . . . . . . . . Non-combat 3 | . . . . . 3 . . . . . . . . . . . . . . . . . . . . . . . . . Combat 1 | . . . . . 1 . . . . . . . . . . . . . . . . . . . . . . . . . Robot Hacks Applied 6 | . . . . . 6 . . . . . . . . . . . . . . . . . . . . . . . . . parse_system 6 | . . . . . 6 . . . . . . . . . . . . . . . . . . . . . . . . . Relay Couplers Released 2 | . . . . . . . . . . . . . . . . . . . . . . . . . . . . . . 2 Programmers 2 | . . . . . . . . . . . . . . . . . . . . . . . . . . . . . . 2 Robots Rewired 4 | . . . . . . . . 1 . 2 . 1 . . . . . . . . . . . . . . . . . . Allies Hacked . | . . . . . . . . . . . . . . . . . . . . . . . . . . . . . . . Hacks Repelled . | . . . . . . . . . . . . . . . . . . . . . . . . . . . . . . . Allies | -11 -10 -10 -9 -9 -9 -8 -8 -7 -7 -7 -7 -6 -6 -6 -6 -6 -5 -5 -5 -5 -5 -5 -4 -4 -4 -3 -3 -2 -2 -2 -------- Run | Scr Mat Min Mat Min Exi Min Mat Fac Low Low Zio Pro Fac Low Low Dat Pro Fac Ext Cet Arc Hub Fac Arm Lab Res Tes Res Qua Sec Total Allies 38 | . 1 3 1 1 . . 1 1 2 2 5 1 . . . . . 1 10 5 . 1 . . . 1 . . 2 . Largest Group 10 | . 1 3 1 1 1 . 1 . 2 2 7 5 1 . . . . 1 10 9 9 6 . . . 1 . . 1 . Highest-Rated Group 600 | . 10 40 16 31 31 . 10 . 56 46 144 116 30 . . . . 10 406 600 600 399 . . . 26 . . 10 . Highest-Rated Ally 156 | . 10 16 16 31 31 . 10 . 31 30 42 42 30 . . . . 10 156 149 94 94 . . . 26 . . 10 . Total Orders . | . . . . . . . . . . . . . . . . . . . . . . . . . . . . . . . Ally Attacks 137 | . . 11 . . . . . 1 . . . 29 . . . . . . 14 38 14 30 . . . . . . . . Total Damage 3355 | . . 113 . . . . . . . . . 509 . . . . . . 436 1021 409 867 . . . . . . . . Kills 29 | . . 2 . . . . . . . . . 6 . . . . . . 2 11 6 2 . . . . . . . . Allies Corrupted 3 | . . . . . . . . . . . . . . . . . . . . 1 . 2 . . . . . . . . Allies Melted . | . . . . . . . . . . . . . . . . . . . . . . . . . . . . . . . Intel | -11 -10 -10 -9 -9 -9 -8 -8 -7 -7 -7 -7 -6 -6 -6 -6 -6 -5 -5 -5 -5 -5 -5 -4 -4 -4 -3 -3 -2 -2 -2 ------- Run | Scr Mat Min Mat Min Exi Min Mat Fac Low Low Zio Pro Fac Low Low Dat Pro Fac Ext Cet Arc Hub Fac Arm Lab Res Tes Res Qua Sec Robot Analysis Total 115 | . . . . . . . . . . . . . . . . 115 . . . . . . . . . . . . . . Derelict Logs Recovered 13 | . . 2 . 2 . . . . . 1 2 2 . 2 1 . 1 . . . . . . . . . . . . . Drone Launches . | . . . . . . . . . . . . . . . . . . . . . . . . . . . . . . . Drone Recoveries . | . . . . . . . . . . . . . . . . . . . . . . . . . . . . . . . Decoded 0b10 Intel 34 | . . . . . . . . . . . . . 9 . . . . 4 1 1 . 10 6 3 . . . . . . Garrisons 1 | . . . . . . . . . . . . . 1 . . . . . . . . . . . . . . . . . Patrols 20 | . . . . . . . . . . . . . 4 . . . . 2 1 1 . 7 4 1 . . . . . . Reinforcements 1 | . . . . . . . . . . . . . . . . . . . . . . 1 . . . . . . . . Guards 12 | . . . . . . . . . . . . . 4 . . . . 2 . . . 2 2 2 . . . . . . Exploration | -11 -10 -10 -9 -9 -9 -8 -8 -7 -7 -7 -7 -6 -6 -6 -6 -6 -5 -5 -5 -5 -5 -5 -4 -4 -4 -3 -3 -2 -2 -2 ------------- Run | Scr Mat Min Mat Min Exi Min Mat Fac Low Low Zio Pro Fac Low Low Dat Pro Fac Ext Cet Arc Hub Fac Arm Lab Res Tes Res Qua Sec Turns Passed 13219 | 21 522 346 671 330 106 278 1022 1475 240 487 388 355 744 194 254 47 211 312 369 276 64 630 489 293 90 457 616 146 761 1025 Spaces Moved 18946 | 34 532 587 784 477 231 551 1111 2270 469 708 897 437 1374 278 501 110 424 539 388 187 39 789 534 406 166 472 1102 261 978 1310 Core 399 | 34 213 . . . . . . 1 . . . . . . . . . . . . . 2 23 . . 14 17 . . 95 Treads . | . . . . . . . . . . . . . . . . . . . . . . . . . . . . . . . Legs . | . . . . . . . . . . . . . . . . . . . . . . . . . . . . . . . Wheels . | . . . . . . . . . . . . . . . . . . . . . . . . . . . . . . . Hover . | . . . . . . . . . . . . . . . . . . . . . . . . . . . . . . . Flight 18547 | . 319 587 784 477 231 551 1111 2269 469 708 897 437 1374 278 501 110 424 539 388 187 39 787 511 406 166 458 1085 261 978 1215 Fastest Speed 21 | 50 40 37 37 37 37 34 34 34 34 34 31 31 28 28 28 21 21 28 28 30 30 24 32 34 34 34 26 26 26 28 Average Speed 35 | 50 44 38 37 37 37 35 53 34 34 34 31 31 28 28 28 25 24 28 28 30 30 38 55 34 36 54 32 26 36 36 Slowest Speed 162 | 50 50 40 37 37 37 117 114 100 34 34 34 31 31 28 28 28 28 28 30 30 30 162 150 34 114 150 150 26 114 150 Overloaded Moves 824 | . . . . . . . . . . . . . . . . 32 197 . . . . 592 3 . . . . . . . Propulsion Burnouts 1 | . . . . . . . . . . . . . . . . . . . . . . 1 . . . . . . . . Robots Hopped 245 | . 8 3 19 4 . 7 21 28 2 1 . . 21 4 . 4 1 22 6 . 1 16 8 . . 3 26 13 16 11 Cave-ins Triggered . | . . . . . . . . . . . . . . . . . . . . . . . . . . . . . . . Teleports 1 | . . . . . . . . . . . . . . . . . . . . . . . . . 1 . . . . . Exploration Rate (%) 59 | 3 68 92 69 95 63 95 74 51 44 84 83 58 34 44 65 70 67 16 70 56 61 71 11 34 97 15 76 11 87 78 Regions Visited 30 Branch Regions 21 Pre-discovered Areas 36 | . 2 2 2 1 . . 2 5 1 1 2 . . 1 1 16 . . . . . . . . . . . . . . Known Exits Taken 27 | . . . 1 1 1 1 1 1 1 1 1 1 1 1 1 1 1 1 1 1 1 1 1 1 1 1 1 1 1 . Unknown Exits Taken 3 | 1 1 1 . . . . . . . . . . . . . . . . . . . . . . . . . . . . Scrap Searched 18 | . . 1 . 1 . 1 . . 2 3 3 2 . . 3 . 2 . . . . . . . . . . . . . Spaces Dug 31 | . . . . . . . . 1 . . . . 6 . . . . . . . . . . 1 . 1 5 . 3 14 Terrain Destroyed 551 | . . 41 7 . . 10 23 67 . . . . 6 . . . 1 . . . . 318 54 1 . 1 5 . 3 14 Melee 24 | . . . . . . . . 1 . . . . 6 . . . . . . . . . . . . . . . 3 14 Projectile 8 | . . . . . . . . . . . . . . . . . 1 . . . . . . 1 . 1 5 . . . AOE 519 | . . 41 7 . . 10 23 66 . . . . . . . . . . . . . 318 54 . . . . . . . Actions | -11 -10 -10 -9 -9 -9 -8 -8 -7 -7 -7 -7 -6 -6 -6 -6 -6 -5 -5 -5 -5 -5 -5 -4 -4 -4 -3 -3 -2 -2 -2 --------- Run | Scr Mat Min Mat Min Exi Min Mat Fac Low Low Zio Pro Fac Low Low Dat Pro Fac Ext Cet Arc Hub Fac Arm Lab Res Tes Res Qua Sec Total 23799 | 36 674 662 993 587 242 591 1334 2755 543 906 1001 589 1615 366 585 122 502 651 590 389 82 1051 696 544 190 665 1321 331 1381 1805 Wait 2032 | . 43 38 100 90 2 21 68 264 69 121 100 15 108 20 22 16 20 65 110 150 36 38 52 35 2 95 79 26 135 92 Move 18446 | 33 516 580 747 468 230 536 1068 2214 464 705 896 436 1332 269 500 103 421 496 375 186 36 761 517 405 165 466 1053 234 946 1288 Hop 225 | . 7 3 17 4 . 7 21 27 2 1 . . 20 4 . 2 1 20 6 . 1 11 8 . . 2 22 13 15 11 Pick Up 46 | . 3 . 3 . . . 1 4 1 . . 2 4 . 1 . . 1 . . . 4 1 1 1 2 2 1 7 7 Fast Attach 156 | 3 7 2 4 . . 2 15 21 . 1 3 2 5 2 1 . . 4 1 3 . 3 9 5 9 4 17 . 15 18 Attach 32 | . . . 1 . 1 1 . 3 . . . . 1 . . . . 1 . . . 2 . . 2 1 4 1 7 7 Detach 16 | . . . . . . 1 . 2 . . . . . . . . . 2 . . . . . . 1 . 5 1 1 3 Swap 57 | . . 2 1 . 2 1 1 2 1 1 . 1 5 3 1 . 1 2 2 2 . 6 2 5 . 2 7 . 3 4 Drop 161 | . 4 3 4 . . . 9 23 . 1 2 2 5 2 1 . . 5 2 3 . 10 2 4 7 7 18 . 23 24 Fire 1594 | . 69 21 69 17 . 15 87 100 3 43 . 63 71 24 35 . 34 33 62 21 9 128 61 41 3 51 93 43 162 236 Melee 65 | . . . . . 7 . . 1 . . . . 21 . 1 1 . . 1 . . . . . . . . . 7 26 Ram 1 | . . . . . . . . . . . . . . . . . . . . . . . . . . 1 . . . . Kick . | . . . . . . . . . . . . . . . . . . . . . . . . . . . . . . . Crush . | . . . . . . . . . . . . . . . . . . . . . . . . . . . . . . . Escape Stasis 58 | . . . . . . . . . . . . . . . . . . . 11 . . 18 . . . 18 . . . 11 Rewire 32 | . . . . . . . . 2 . 10 . 20 . . . . . . . . . . . . . . . . . . Trap . | . . . . . . . . . . . . . . . . . . . . . . . . . . . . . . . Miscellaneous 878 | . 25 13 47 8 . 7 64 92 3 23 . 48 43 42 23 . 25 22 20 24 . 70 44 48 . 16 21 12 60 78 Route ------- -11/Scrapyard -10/Materials (discovered 3 exits: *Mat / [*Min x2]) -10/Mines (discovered 2 exits: *Mat x2) -9/Materials (discovered 6 exits: *Mat x3 / *Min / *Sto x2) -9/Mines (discovered 3 exits: *Mat / *Exi / *Zio) -9/Exiles -8/Mines (discovered 2 exits: *Mat x2) -8/Materials (discovered 3 exits: *Fac x3) -7/Factory (discovered 4 exits: *Fac x2 / *Low x2) -7/Lower Caves -7/Lower Caves (discovered 2 exits: *Fac / *Zio) -7/Zion (discovered 2 exits: [Dee] / *Pro) -6/Proximity Caves -6/Factory (discovered 4 exits: *Fac x2 / *Low x2) -6/Lower Caves -6/Lower Caves (discovered 2 exits: Fac / *Dat) -6/Data Miner -5/Proximity Caves -5/Factory (discovered 4 exits: Upp x2 / *Ext x2) -5/Extension (discovered 3 exits: *Fac x2 / *Cet) -5/Cetus (discovered 2 exits: *Fac / *Arc) -5/Archives (discovered 3 exits: Fac / *Hub x2) -5/Hub_04(d) (discovered 3 exits: *Fac x3) -4/Factory (discovered 3 exits: *Res x2 / *Arm) -4/Armory (discovered 2 exits: Res / *Lab) -4/Lab -3/Research (discovered 2 exits: *Tes x2) -3/Testing -2/Research (discovered 4 exits: *Acc x2 / *Qua x2) -2/Quarantine (discovered 2 exits: *Acc / *Sec) -2/Section 7 (discovered 1 exit: *Acc) History --------- Turn | Location | Event 6 | -11/Scrapyard | Upgraded with Propulsion slot (x1) 6 | -11/Scrapyard | Upgraded with Utility slot (x1) 6 | -11/Scrapyard | Upgraded with Weapon slot (x1) 10 | -11/Scrapyard | Discovered new exit (range 15) 22 | -11/Scrapyard | Entered Materials 177 | -10/Materials | Discovered new exit (range 10) 263 | -10/Materials | Discovered new exit (range 11) 298 | -10/Materials | Reached level 2 330 | -10/Materials | Core integrity fell below 50% 407 | -10/Materials | Discovered new exit (range 16) 418 | -10/Materials | Upgraded with Weapon slot (x1) 544 | -10/Materials | Entered Mines 545 | -10/Mines | Assembled infested the area 546 | -10/Mines | Reached level 3 547 | -10/Mines | Assisted by bots powering up and referring to "LRC-V3" 596 | -10/Mines | Destroyed 18 combat bots 671 | -10/Mines | Learned location of Mines (-9) 678 | -10/Mines | Discovered new exit (range 14) 724 | -10/Mines | Discovered new exit (range 11) 846 | -10/Mines | Build established: Hacker-Mutant 890 | -10/Mines | Entered Materials 890 | -9/Materials | Accompanied by 1 ally 892 | -9/Materials | Reached level 4 902 | -9/Materials | Identified exit to Mines 902 | -9/Materials | Identified exit to Storage 1030 | -9/Materials | Reached level 5 1041 | -9/Materials | Upgraded with Utility slot (x1) 1205 | -9/Materials | Destroyed 8 combat bots 1208 | -9/Materials | Discovered new exit (range 16) 1238 | -9/Materials | Discovered new exit (range 15) 1245 | -9/Materials | Reached level 6 1274 | -9/Materials | Identified exit to Materials 1290 | -9/Materials | First assault squad dispatched 1372 | -9/Materials | Discovered exit to Materials (range 4) 1408 | -9/Materials | Reached level 7 1561 | -9/Materials | Entered Mines 1563 | -9/Mines | Reached level 8 1575 | -9/Mines | Discovered new exit (range 13) 1581 | -9/Mines | A Derelict revealed a hidden shortcut to a safe place 1633 | -9/Mines | Build established: Scavenger-Gunner 1663 | -9/Mines | Received a Mining Laser from a helpful Derelict 1718 | -9/Mines | Discovered exit to Materials (range 10) 1718 | -9/Mines | Learned Materials emergency access door positions 1823 | -9/Mines | Deemed a non-threat by the Exiles lab entrance 1825 | -9/Mines | Identified exit to Exiles 1891 | -9/Mines | Entered Exiles 1891 | -9/Exiles | Accompanied by 1 ally 1901 | -9/Exiles | Met 8R-AWN 1912 | -9/Exiles | Met EX-HEX 1945 | -9/Exiles | Met EX-DEC 1962 | -9/Exiles | Met EX-BIN 1988 | -9/Exiles | Discovered new exit (range 15) 1993 | -9/Exiles | Identified exit to Mines 1994 | -9/Exiles | Upgraded with Power slot (x1) 1994 | -9/Exiles | Upgraded with Propulsion slot (x1) 1994 | -9/Exiles | Upgraded with Utility slot (x2) 1997 | -9/Exiles | Entered Mines 2039 | -8/Mines | Discovered exit to Materials (range 16) 2039 | -8/Mines | Reached level 9 2131 | -8/Mines | Discovered exit to Materials (range 13) 2275 | -8/Mines | Entered Materials 2277 | -8/Materials | Reached level 10 2321 | -8/Materials | Garrison activated, responded to threat 2370 | -8/Materials | Reached level 11 2415 | -8/Materials | Build established: Scavenger-Scout 2417 | -8/Materials | Core integrity fell below 50% 2447 | -8/Materials | Destroyed 8 combat bots 2647 | -8/Materials | Reached level 12 2675 | -8/Materials | First assault squad dispatched 2678 | -8/Materials | Upgraded with Utility slot (x3) 2687 | -8/Materials | Discovered new exit (range 12) 2904 | -8/Materials | Discovered new exit (range 16) 2953 | -8/Materials | Identified exit to Factory 3232 | -8/Materials | Discovered exit to Factory (range 14) 3297 | -8/Materials | Entered Factory 3299 | -7/Factory | Reached level 13 3303 | -7/Factory | Identified exit to Lower Caves 3371 | -7/Factory | Hacking Suite fried by hacking feedback 3426 | -7/Factory | Reached level 14 3482 | -7/Factory | Discovered new exit (range 11) 3510 | -7/Factory | Build established: Hacker-Scout 3750 | -7/Factory | Reached level 15 3766 | -7/Factory | Discovered new exit (range 24) 3773 | -7/Factory | Core integrity fell below 50% 4097 | -7/Factory | First assault squad dispatched 4261 | -7/Factory | Reached level 16 4414 | -7/Factory | Fabricated Enh. Autogun? 4555 | -7/Factory | Fabricated Enh. Autogun (x1) 4772 | -7/Factory | Entered Lower Caves 4866 | -7/Lower Caves | A Commander dispatched an escort 4875 | -7/Lower Caves | Learned location of 1 exit from Factory 4875 | -7/Lower Caves | Learned Extension emergency access door positions 4875 | -7/Lower Caves | Learned Factory stockpile data 4875 | -7/Lower Caves | Learned Armory security intel 4875 | -7/Lower Caves | Learned Factory terminal intel 4875 | -7/Lower Caves | Learned Research terminal intel 4875 | -7/Lower Caves | Learned Armory garrison access intel 4882 | -7/Lower Caves | Discovered new exit (range 14) 4917 | -7/Lower Caves | Identified exit to Lower Caves 5012 | -7/Lower Caves | Entered another Lower Caves area 5012 | -7/Lower Caves | Accompanied by 2 allies 5013 | -7/Lower Caves | Commander's escort returned to base 5013 | -7/Lower Caves | Commander's escort returned to base 5027 | -7/Lower Caves | Discovered new exit (range 19) 5037 | -7/Lower Caves | Attracted the attention of an 0b10 outpost 5121 | -7/Lower Caves | Reached level 17 5145 | -7/Lower Caves | Destroyed 13 combat bots 5157 | -7/Lower Caves | Identified exit to Factory 5384 | -7/Lower Caves | Discovered new exit (range 11) 5430 | -7/Lower Caves | Identified exit to Zion 5499 | -7/Lower Caves | Entered Zion 5499 | -7/Zion | Accompanied by 2 allies 5511 | -7/Zion | Discovered new exit (range 22) 5531 | -7/Zion | System corruption cleaned by Quarantine Array 5551 | -7/Zion | Upgraded with Propulsion slot (x1) 5595 | -7/Zion | Gained Derelict followers 5618 | -7/Zion | Received a visual enhancement algorithm 5696 | -7/Zion | Discovered new exit (range 13) 5789 | -7/Zion | Identified exit to Proximity Caves 5887 | -7/Zion | Entered Proximity Caves 5887 | -6/Proximity Caves | Accompanied by 7 allies 5939 | -6/Proximity Caves | Attracted the attention of an 0b10 outpost 5944 | -6/Proximity Caves | Reached level 18 6075 | -6/Proximity Caves | Learned Factory terminal intel 6145 | -6/Proximity Caves | Discovered exit to Factory (range 13) 6222 | -6/Proximity Caves | Upgraded with Utility slot (x2) 6242 | -6/Proximity Caves | Entered Factory 6242 | -6/Factory | Accompanied by 1 ally 6243 | -6/Factory | Identified exit to Factory 6244 | -6/Factory | Reached level 19 6245 | -6/Factory | Loaded intel: 20 terminal locations 6399 | -6/Factory | Fabricated Enh. Autogun (x1) 6400 | -6/Factory | Upgraded with Weapon slot (x2) 6407 | -6/Factory | Fabricated Enh. Autogun? 6592 | -6/Factory | First assault squad dispatched 6686 | -6/Factory | Spotted B-75 Beast 6701 | -6/Factory | Garrison activated, responded to threat 6731 | -6/Factory | Core integrity fell below 50% 6732 | -6/Factory | Discovered new exit (range 21) 6792 | -6/Factory | Core integrity fell below 20% 6866 | -6/Factory | Discovered exit to Factory (range 24) 6866 | -6/Factory | Identified exit to Lower Caves 6951 | -6/Factory | Reached level 20 6986 | -6/Factory | Entered Lower Caves 6987 | -6/Lower Caves | Encountered a Warlord checkpoint 7016 | -6/Lower Caves | Attracted the attention of an 0b10 outpost 7073 | -6/Lower Caves | Destroyed 8 combat bots 7135 | -6/Lower Caves | Discovered new exit (range 20) 7171 | -6/Lower Caves | Learned Factory terminal intel 7180 | -6/Lower Caves | Identified exit to Lower Caves 7180 | -6/Lower Caves | Entered another Lower Caves area 7183 | -6/Lower Caves | Encountered a Warlord checkpoint 7184 | -6/Lower Caves | Discovered exit to Factory (range 13) 7275 | -6/Lower Caves | Attracted the attention of an 0b10 base 7303 | -6/Lower Caves | Learned Research trap positions 7312 | -6/Lower Caves | Destroyed 7 combat bots 7380 | -6/Lower Caves | Discovered new exit (range 16) 7430 | -6/Lower Caves | Found Alien Artifact 7434 | -6/Lower Caves | Identified exit to Data Miner 7434 | -6/Lower Caves | Entered Data Miner 7434 | -6/Data Miner | Discovered new exit (range 7) 7440 | -6/Data Miner | Met Data Miner 7447 | -6/Data Miner | Learned location of Section 7 (-2) 7447 | -6/Data Miner | Acquired the access code to Warlord's prototype stash 7449 | -6/Data Miner | Received God Mode back door access code from Data Miner 7459 | -6/Data Miner | Interfaced with the Data Conduit 7480 | -6/Data Miner | Identified exit to Proximity Caves 7481 | -6/Data Miner | Entered Proximity Caves 7483 | -5/Proximity Caves | Reached level 21 7494 | -5/Proximity Caves | Attracted the attention of an 0b10 checkpoint 7538 | -5/Proximity Caves | Attracted the attention of an 0b10 outpost 7587 | -5/Proximity Caves | Destroyed 7 combat bots 7631 | -5/Proximity Caves | Discovered exit to Factory (range 21) 7644 | -5/Proximity Caves | Reached level 22 7666 | -5/Proximity Caves | Learned 4 Factory zone layouts 7673 | -5/Proximity Caves | Destroyed 9 combat bots 7692 | -5/Proximity Caves | Entered Factory 7693 | -5/Factory | Identified exit to Upper Caves 7694 | -5/Factory | Loaded intel: 254 machine locations 7695 | -5/Factory | Loaded intel: 22 terminal locations 7742 | -5/Factory | Identified exit to Extension 7907 | -5/Factory | Fabricated Lrn. Tractor Beam (x2) 8000 | -5/Factory | Local fabrication network quarantined 8004 | -5/Factory | Entered Extension 8006 | -5/Extension | Loaded intel: 39 machine locations 8012 | -5/Extension | Disrupted transfer network 8032 | -5/Extension | Reached level 23 8066 | -5/Extension | Rescued A7 8072 | -5/Extension | Destroyed 8 combat bots 8111 | -5/Extension | Rescued a captive Derelict 8122 | -5/Extension | Rescued a captive Derelict 8123 | -5/Extension | Rescued a captive Derelict 8123 | -5/Extension | Rescued a captive Derelict 8153 | -5/Extension | Rescued a captive Derelict 8155 | -5/Extension | Rescued a captive Derelict 8161 | -5/Extension | Destroyed 7 combat bots 8167 | -5/Extension | Spotted B-75 Beast 8175 | -5/Extension | Spotted B-75 Beast 8180 | -5/Extension | Allies destroyed B-75 Beast 8184 | -5/Extension | Discovered new exit (range 16) 8185 | -5/Extension | Destroyed B-75 Beast 8209 | -5/Extension | Rescued a captive Derelict 8212 | -5/Extension | Rescued a captive Derelict 8214 | -5/Extension | Rescued a captive Derelict 8246 | -5/Extension | Rescued a captive Derelict 8273 | -5/Extension | Rescued a captive Derelict 8274 | -5/Extension | Rescued a captive Derelict 8274 | -5/Extension | Rescued a captive Derelict 8278 | -5/Extension | Rescued a captive Derelict 8281 | -5/Extension | Rescued a captive Derelict 8286 | -5/Extension | Discovered new exit (range 11) 8286 | -5/Extension | Discovered new exit (range 6) 8368 | -5/Extension | Identified exit to Cetus 8373 | -5/Extension | Entered Cetus 8373 | -5/Cetus | Accompanied by 8 allies 8374 | -5/Cetus | Loaded intel: 24 machine locations 8378 | -5/Cetus | Acquired a Cetus Manufacturing Module code from A7 8379 | -5/Cetus | Spotted Cetus Guard 8379 | -5/Cetus | Spotted Cetus Guard 8383 | -5/Cetus | Destroyed Cetus Guard 8383 | -5/Cetus | Spotted Cetus Guard 8386 | -5/Cetus | Spotted Cetus Guard 8387 | -5/Cetus | Destroyed Cetus Guard 8389 | -5/Cetus | Allies destroyed Cetus Guard 8393 | -5/Cetus | Extracted ID and sensor layout for unrecognized location from A7's data core 8395 | -5/Cetus | Destroyed Cetus Guard 8426 | -5/Cetus | Found Prototype Protection 8426 | -5/Cetus | Identified Med. Regenerative Plating 8441 | -5/Cetus | Started Cetus Manufacturing Module 8466 | -5/Cetus | Manufactured an Enhanced Grunt 8482 | -5/Cetus | Discovered new exit (range 16) 8488 | -5/Cetus | Spotted Cetus Guard 8488 | -5/Cetus | Spotted Cetus Guard 8490 | -5/Cetus | Spotted Cetus Guard 8491 | -5/Cetus | Manufactured an Enhanced Grunt 8492 | -5/Cetus | Spotted Cetus Guard 8493 | -5/Cetus | Discovered new exit (range 21) 8494 | -5/Cetus | Destroyed Cetus Guard 8499 | -5/Cetus | Destroyed Cetus Guard 8506 | -5/Cetus | Destroyed Cetus Guard 8508 | -5/Cetus | Destroyed Cetus Guard 8514 | -5/Cetus | Met Revision 17 8516 | -5/Cetus | Manufactured an Enhanced Grunt 8516 | -5/Cetus | Reached level 24 8536 | -5/Cetus | Upgraded with Utility slot (x1) 8541 | -5/Cetus | Manufactured an Enhanced Grunt 8554 | -5/Cetus | Identified exit to Archives 8566 | -5/Cetus | Manufactured an Enhanced Grunt 8649 | -5/Cetus | Entered Archives 8649 | -5/Archives | Accompanied by 9 allies 8650 | -5/Archives | Loaded intel: 8 machine locations 8652 | -5/Archives | Discovered new exit (range 24) 8652 | -5/Archives | Discovered new exit (range 23) 8672 | -5/Archives | Discovered new exit (range 17) 8685 | -5/Archives | Identified exit to Hub_04(d) 8713 | -5/Archives | Entered Hub_04(d) 8713 | -5/Hub_04(d) | Accompanied by 6 allies 8714 | -5/Hub_04(d) | Loaded intel: 104 machine locations 8777 | -5/Hub_04(d) | Garrison activated, responded to threat 8807 | -5/Hub_04(d) | Network Hub disabled 8843 | -5/Hub_04(d) | Intercept squad dispatched 8848 | -5/Hub_04(d) | Spotted Tracker 8858 | -5/Hub_04(d) | Destroyed Tracker 8861 | -5/Hub_04(d) | Found Exp. Targeting Computer 8875 | -5/Hub_04(d) | Spotted Combat Programmer 8879 | -5/Hub_04(d) | Spotted Lightning 8882 | -5/Hub_04(d) | Spotted Lightning 8885 | -5/Hub_04(d) | Core integrity fell below 50% 8885 | -5/Hub_04(d) | Destroyed Combat Programmer 8886 | -5/Hub_04(d) | Spotted Lightning 8889 | -5/Hub_04(d) | Destroyed Lightning 8895 | -5/Hub_04(d) | Destroyed Lightning 8924 | -5/Hub_04(d) | Destroyed 10 combat bots 8951 | -5/Hub_04(d) | Destroyed Lightning 8980 | -5/Hub_04(d) | Spotted Lightning 8980 | -5/Hub_04(d) | Spotted Lightning 8983 | -5/Hub_04(d) | Spotted Lightning 8998 | -5/Hub_04(d) | System corruption reached 10% 9003 | -5/Hub_04(d) | Destroyed Lightning 9013 | -5/Hub_04(d) | Destroyed Lightning 9027 | -5/Hub_04(d) | Destroyed Lightning 9050 | -5/Hub_04(d) | Found EM Dispersion Field 9073 | -5/Hub_04(d) | Destroyed 7 combat bots 9075 | -5/Hub_04(d) | Found EM Dispersion Field 9092 | -5/Hub_04(d) | Discovered new exit (range 12) 9095 | -5/Hub_04(d) | Discovered new exit (range 15) 9095 | -5/Hub_04(d) | Identified exit to Factory 9153 | -5/Hub_04(d) | Discovered exit to Factory (range 16) 9180 | -5/Hub_04(d) | Network Hub disabled 9180 | -5/Hub_04(d) | Reached level 25 9198 | -5/Hub_04(d) | Found Prototype Energy Cannon 9211 | -5/Hub_04(d) | Found Exp. Phase Shifter 9284 | -5/Hub_04(d) | Network Hub disabled 9343 | -5/Hub_04(d) | Entered Factory 9344 | -4/Factory | Identified exit to Armory 9345 | -4/Factory | Loaded intel: 287 machine locations 9346 | -4/Factory | Loaded intel: 20 terminal locations 9450 | -4/Factory | Discovered new exit (range 19) 9512 | -4/Factory | Identified exit to Research 9593 | -4/Factory | First assault squad dispatched 9713 | -4/Factory | Intercept squad dispatched 9723 | -4/Factory | Reached level 26 9723 | -4/Factory | Spotted Tracker 9727 | -4/Factory | Core integrity fell below 50% 9735 | -4/Factory | Core integrity fell below 20% 9737 | -4/Factory | Destroyed Tracker 9758 | -4/Factory | Destroyed 8 combat bots 9758 | -4/Factory | Spotted Combat Programmer 9761 | -4/Factory | Destroyed Combat Programmer 9777 | -4/Factory | Discovered exit to Research (range 24) 9832 | -4/Factory | Entered Armory 9834 | -4/Armory | Loaded intel: 76 machine locations 10007 | -4/Armory | Destroyed 7 combat bots 10113 | -4/Armory | Discovered exit to Research (range 5) 10121 | -4/Armory | Discovered new exit (range 4) 10125 | -4/Armory | Identified exit to Lab 10125 | -4/Armory | Entered Lab 10125 | -4/Lab | Discovered exit to Research (range 9) 10127 | -4/Lab | Reached level 27 10129 | -4/Lab | Hidden lab's door opened automatically 10129 | -4/Lab | Sensor layout match revealed 10130 | -4/Lab | Gained access to the hidden lab's interior 10144 | -4/Lab | Decrypted terminal 10144 | -4/Lab | Acquired modification code for an L2 power cell 10148 | -4/Lab | Found Prototype Energy Gun 10148 | -4/Lab | Identified Tachyon Dispersion Ray 10151 | -4/Lab | Found Prototype Energy Gun 10151 | -4/Lab | Identified Hyp. EM Gauss Rifle 10155 | -4/Lab | Found Prototype Hackware 10155 | -4/Lab | Identified Quantum Router 10170 | -4/Lab | Found Alien Artifact 10170 | -4/Lab | Identified Core Regenerator 10170 | -4/Lab | Used Core Regenerator, restored core integrity (+8) 10174 | -4/Lab | Found Alien Artifact 10174 | -4/Lab | Identified Integrated Reactor 10174 | -4/Lab | Installed Integrated Reactor, increased core energy generation (+2%) 10177 | -4/Lab | Found Alien Artifact 10177 | -4/Lab | Identified Transdimensional Reconstructor 10177 | -4/Lab | Warped through subspace 10195 | -4/Lab | Identified EMDS 10210 | -4/Lab | Decrypted terminal 10211 | -4/Lab | Decrypted terminal 10215 | -4/Lab | Entered Research 10216 | -3/Research | Loaded intel: 99 trap records 10217 | -3/Research | Loaded intel: 105 machine locations 10217 | -3/Research | Reached level 28 10218 | -3/Research | Loaded intel: 16 terminal locations 10230 | -3/Research | Identified exit to Testing 10245 | -3/Research | Upgraded with Utility slot (x1) 10256 | -3/Research | Found EM Disruption Field 10355 | -3/Research | Intercept squad dispatched 10374 | -3/Research | Spotted Tracker 10376 | -3/Research | Spotted Tracker 10376 | -3/Research | Destroyed Tracker 10385 | -3/Research | Destroyed Tracker 10415 | -3/Research | Revision forces began assault on 0b10 10452 | -3/Research | Spotted Combat Programmer 10455 | -3/Research | Destroyed Combat Programmer 10493 | -3/Research | Met up with Revision 17++ 10592 | -3/Research | Reached level 29 10609 | -3/Research | Upgraded with Propulsion slot (x1) 10672 | -3/Research | Entered Testing 10673 | -3/Testing | Loaded intel: 67 machine locations 10678 | -3/Testing | Identified exit to Research 10748 | -3/Testing | Spotted Striker 10749 | -3/Testing | Spotted Striker 10808 | -3/Testing | Spotted PL-J5MNUXQCIU 10895 | -3/Testing | Intercept squad dispatched 10895 | -3/Testing | Spotted Tracker 10898 | -3/Testing | Destroyed Tracker 10902 | -3/Testing | Spotted Combat Programmer 10907 | -3/Testing | Destroyed Combat Programmer 10948 | -3/Testing | Found Prototype Device 10948 | -3/Testing | Identified AEGIS Remote Shield 10975 | -3/Testing | Found Prototype Hackware 10975 | -3/Testing | Identified System Mapper 11070 | -3/Testing | Found Prototype Energy Cannon 11070 | -3/Testing | Identified Potential Cannon 11072 | -3/Testing | Found Prototype Energy Cannon 11072 | -3/Testing | Identified Imp. Potential Cannon 11125 | -3/Testing | Intercept squad dispatched 11129 | -3/Testing | Spotted Tracker 11131 | -3/Testing | Spotted Tracker 11134 | -3/Testing | Destroyed Tracker 11140 | -3/Testing | Destroyed Tracker 11157 | -3/Testing | Spotted Combat Programmer 11158 | -3/Testing | Spotted Combat Programmer 11168 | -3/Testing | Destroyed Combat Programmer 11174 | -3/Testing | Destroyed Combat Programmer 11241 | -3/Testing | Destroyed PL-J5MNUXQCIU 11244 | -3/Testing | Found Femtoactuators 11259 | -3/Testing | Found Nanosword 11288 | -3/Testing | Entered Research 11289 | -2/Research | Loaded intel: 97 machine locations 11290 | -2/Research | Reached level 30 11313 | -2/Research | Discovered new exit (range 15) 11324 | -2/Research | Reached level 31 11381 | -2/Research | Upgraded with Weapon slot (x1) 11382 | -2/Research | Destroyed 17 combat bots 11387 | -2/Research | Identified exit to Quarantine 11398 | -2/Research | Discovered new exit (range 3) 11434 | -2/Research | Entered Quarantine 11435 | -2/Quarantine | Loaded intel: 55 machine locations 11442 | -2/Quarantine | Found Alien Energy Cannon 11442 | -2/Quarantine | Identified Core Cannon 11518 | -2/Quarantine | Build established: Wizard-Scout 11540 | -2/Quarantine | Central database locked down 11542 | -2/Quarantine | Met incapacitated Sigix Warrior 11542 | -2/Quarantine | Lockdown squad dispatched 11542 | -2/Quarantine | Reached level 32 11548 | -2/Quarantine | Acquired the access code to the Sigix quarantine chamber 11548 | -2/Quarantine | Unlocked Sigix quarantine chamber 11620 | -2/Quarantine | Spotted Lightning 11620 | -2/Quarantine | Spotted Lightning 11620 | -2/Quarantine | Spotted Lightning 11622 | -2/Quarantine | Destroyed Lightning 11623 | -2/Quarantine | Destroyed Lightning 11627 | -2/Quarantine | Destroyed Lightning 11654 | -2/Quarantine | Destroyed 16 combat bots 11682 | -2/Quarantine | Intercept squad dispatched 11684 | -2/Quarantine | Spotted Tracker 11685 | -2/Quarantine | Spotted Tracker 11686 | -2/Quarantine | Destroyed Tracker 11686 | -2/Quarantine | Destroyed Tracker 11695 | -2/Quarantine | Spotted Combat Programmer 11700 | -2/Quarantine | Spotted Combat Programmer 11701 | -2/Quarantine | Destroyed Combat Programmer 11706 | -2/Quarantine | Destroyed Combat Programmer 11712 | -2/Quarantine | First assault squad dispatched 11726 | -2/Quarantine | Discovered new exit (range 22) 11748 | -2/Quarantine | Destroyed 7 combat bots 11769 | -2/Quarantine | Found Alien Artifact 11774 | -2/Quarantine | Identified Terrabomb 11851 | -2/Quarantine | Spotted Fortress 11973 | -2/Quarantine | Destroyed Fortress 11988 | -2/Quarantine | Core integrity fell below 50% 12001 | -2/Quarantine | Found Hvy. Insulated Plating 12007 | -2/Quarantine | Found Vortex Chain Reactor 12021 | -2/Quarantine | Found Exp. Force Field 12052 | -2/Quarantine | Intercept squad dispatched 12055 | -2/Quarantine | Spotted Tracker 12055 | -2/Quarantine | Destroyed Tracker 12056 | -2/Quarantine | Spotted Tracker 12056 | -2/Quarantine | Spotted Tracker 12056 | -2/Quarantine | Destroyed Tracker 12058 | -2/Quarantine | Destroyed Tracker 12071 | -2/Quarantine | Spotted Combat Programmer 12072 | -2/Quarantine | Spotted Combat Programmer 12081 | -2/Quarantine | Spotted Combat Programmer 12086 | -2/Quarantine | Destroyed Combat Programmer 12091 | -2/Quarantine | Reached level 33 12091 | -2/Quarantine | Destroyed Combat Programmer 12098 | -2/Quarantine | Scanned by Researcher 12098 | -2/Quarantine | Destroyed Combat Programmer 12194 | -2/Quarantine | Discovered new exit (range 6) 12195 | -2/Quarantine | Identified exit to Section 7 12195 | -2/Quarantine | Entered Section 7 12196 | -2/Section 7 | Loaded intel: 151 machine locations 12232 | -2/Section 7 | Spotted B-90 Cyclops 12242 | -2/Section 7 | Destroyed B-90 Cyclops 12262 | -2/Section 7 | Found Alien Artifact 12274 | -2/Section 7 | Identified Integrity Redistributor 12275 | -2/Section 7 | Used Integrity Redistributor, redistributed integrity from core (-0) 12309 | -2/Section 7 | Found Gui. Micro-nuke Launcher 12383 | -2/Section 7 | Discovered new exit (range 16) 12390 | -2/Section 7 | Identified exit to Access 12397 | -2/Section 7 | Intercept squad dispatched 12399 | -2/Section 7 | Spotted Tracker 12401 | -2/Section 7 | Spotted Tracker 12404 | -2/Section 7 | Destroyed 9 combat bots 12413 | -2/Section 7 | Spotted Combat Programmer 12416 | -2/Section 7 | Spotted Combat Programmer 12420 | -2/Section 7 | Destroyed Combat Programmer 12424 | -2/Section 7 | Destroyed Combat Programmer 12456 | -2/Section 7 | Destroyed Tracker 12538 | -2/Section 7 | Found Alien Artifact 12549 | -2/Section 7 | Garrison activated, responded to threat 12582 | -2/Section 7 | Destroyed Tracker 12609 | -2/Section 7 | Spotted B-90 Cyclops 12622 | -2/Section 7 | Found Integrated Reactor 12622 | -2/Section 7 | Installed Integrated Reactor, increased core energy generation (+2%) 12695 | -2/Section 7 | First assault squad dispatched 12743 | -2/Section 7 | Spotted Alpha 7 12770 | -2/Section 7 | Spotted Alpha 7 12776 | -2/Section 7 | Intercept squad dispatched 12783 | -2/Section 7 | Spotted Tracker 12783 | -2/Section 7 | Spotted Tracker 12784 | -2/Section 7 | Destroyed Tracker 12789 | -2/Section 7 | Destroyed Tracker 12798 | -2/Section 7 | Spotted Combat Programmer 12800 | -2/Section 7 | Spotted Combat Programmer 12800 | -2/Section 7 | Spotted Tracker 12802 | -2/Section 7 | Destroyed Combat Programmer 12802 | -2/Section 7 | Reached level 34 12802 | -2/Section 7 | Spotted Combat Programmer 12810 | -2/Section 7 | Destroyed Combat Programmer 12814 | -2/Section 7 | Core integrity fell below 20% 12817 | -2/Section 7 | System corruption reached 10% 12843 | -2/Section 7 | Destroyed Combat Programmer 12878 | -2/Section 7 | Destroyed Alpha 7 12894 | -2/Section 7 | High security lockdown imminent 12902 | -2/Section 7 | Destroyed Alpha 7 12932 | -2/Section 7 | Identified Core Reset Matrix 12957 | -2/Section 7 | Spotted B-99 Colossus 12974 | -2/Section 7 | High security lockdown engaged 12988 | -2/Section 7 | Spotted Executioner 12989 | -2/Section 7 | Spotted Executioner 12993 | -2/Section 7 | Spotted Striker 12994 | -2/Section 7 | Spotted Striker 13020 | -2/Section 7 | Found Alien Artifact 13020 | -2/Section 7 | Identified Matter Drive 13094 | -2/Section 7 | Intercept squad dispatched 13100 | -2/Section 7 | Spotted Tracker 13100 | -2/Section 7 | Spotted Tracker 13101 | -2/Section 7 | Spotted Tracker 13102 | -2/Section 7 | Spotted Tracker 13104 | -2/Section 7 | Destroyed Tracker 13107 | -2/Section 7 | Destroyed Tracker 13108 | -2/Section 7 | Destroyed Tracker 13119 | -2/Section 7 | Destroyed Tracker 13147 | -2/Section 7 | Spotted Combat Programmer 13148 | -2/Section 7 | Spotted Combat Programmer 13148 | -2/Section 7 | Spotted Combat Programmer 13149 | -2/Section 7 | Spotted Combat Programmer 13155 | -2/Section 7 | Destroyed Combat Programmer 13161 | -2/Section 7 | Destroyed Combat Programmer 13165 | -2/Section 7 | Destroyed Combat Programmer 13171 | -2/Section 7 | Destroyed Combat Programmer 13204 | -2/Section 7 | Spotted Investigator 13204 | -2/Section 7 | Scanned by Researcher 13220 | -2/Section 7 | Destroyed by G-73 Enforcer with Heavy Laser Last Messages --------------- 13215_ G-73 Enforcer destroyed. 13216_ M-36 Artificer stasis bubble strength at 100. 13216_ I-47 Archangel stasis bubble strength at 90. 13216_ Stasis bubble strength at 63. 13217_ M-36 Artificer stasis bubble strength at 90. 13217_ I-47 Archangel stasis bubble strength at 80. 13217_ Held in stasis. 13217_ Stasis bubble strength at 44. 13218_ M-36 Artificer stasis bubble strength at 80. 13218_ I-47 Archangel stasis bubble strength at 70. 13218_ Stasis bubble strength at 25. 13219_ M-36 Artificer stasis bubble strength at 70. 13219_ I-47 Archangel stasis bubble strength at 60. 13219_ Stasis bubble strength at 6. 13219_ P-80 Master stasis bubble strength at 57. 13220_ M-36 Artificer stasis bubble strength at 60. 13220_ I-47 Archangel stasis bubble strength at 50. 13220_ Investigator stasis bubble strength at 189. 13220_ Stasis bubble bursts. 13220_ G-73 Enforcer stasis bubble strength at 177. Map ----- +----------------------------------------------------+ | ####% #######""" | | #### #######""" | | #### #######"" | | #### #######" """""" | | #### ####### """""""""""" ###"""" | | #### ####### """""""""""" ###"""" | | #### ########################### ###++####?## | | #### ########################### ### ####### | | ##### ################################ #####?# | | ##### ################################ ####### | | # ################################ ####### | | " # ################################ ####""" | | " # ################################ ####""" | | " # ################################ ####""" | | " # ################################ #### | | " + ##################### i g | | " # ##################### %g | | " #" ^ ##################### %###############" | | + " #####################*i###############"" | | ######+###################[!%#=*###############" | | ############ !*[%""%%""""###########""" | | """ """ ############===%g!gc[m"""############## | | """ """ ############ %[!!bg!!p"""############## | | """ """ ############"=%==b!p%%"""############## | | """ """ ############""%m%!!g!!"""############## | | """ """ ############" @|*=!=%*"""############## | | """ """ ############ ![=[= """############## | | """ """ ############ @ = """"###""""""""""" | | ############" "" """###"" """" | | ############""""" """"###"" """" | | ################### #######"" """" | | ################### #######"" """" | | ############################## ####### | | ############################## ####### | | ############################## ####### """" | | ?##?########################## """" | | #?############################ """" | | ####??#################################" """" | | ?###??#################################"""T """""" | | ###?#??####################################"###### | | ?###?#???################################## ##?### | | ??#?#????#?################################ ##?#?# | | ?????????????############################# "" ?? | | ???????????##?##########################??" ? ## | | ???????????????########################?##?#?###?# | | ???????????#????#??####?######?######?##????##???? | | | | | | | | | +----------------------------------------------------+ Best States ------------- Heat Dissipation 91 Energy Generation 80 Energy Capacity 700 Matter Stores 300 Matter Capacity 300 Sight Range 18 Robot Scan Range 20 Terrain Scan Range 24 Terrain Scan Density 810 Additional Mass Support 6 Resistance: KI 25 Resistance: EM 75 Phase Shifting 20 Evasion (%) 98 Targeting Accuracy 22 Melee Accuracy 18 Target Analysis 8 Core Analysis 8 Armor Integrity Analysis 66 Recoil Reduction 6 Matter Filtering 50 Salvage Targeting 2 Offensive Hacking 30 Defensive Hacking 35 Item Schematics ----------------- Adv. Signal Interpreter | -8/Mines | Hacked Enh. Autogun | -7/Factory | Scanalyzed Combat Drone Bay | -6/Data Miner | Free Lgt. Regenerative Plating | -6/Data Miner | Free Cmb. Gravmag System | -6/Data Miner | Free Triangulator | -6/Data Miner | Free Exp. Terrain Scan Processor | -6/Data Miner | Free Exp. Targeting Computer | -6/Data Miner | Free Tactical Coordination Suite | -6/Data Miner | Free Mni. Smartbomb Launcher | -6/Data Miner | Free Exp. ECM Suite | -6/Data Miner | Free Cloaking Device | -6/Data Miner | Free Plasma Sword | -6/Data Miner | Free Lrn. Tractor Beam | -5/Factory | Hacked Adv. Core Analyzer | -5/Hub_04(d) | Hacked Robot Schematics ------------------ R-06 Scavenger | -7/Factory | Hacked M-14 Sweeper | -7/Factory | Hacked S-27 Virus | -6/Data Miner | Free G-50 Soldier | -6/Data Miner | Free L-41 Fighter | -6/Data Miner | Free H-66 Slayer | -6/Data Miner | Free I-36 Angel | -6/Data Miner | Free Fabricated ------------ Enh. Autogun | x1 | -7/Factory Enh. Autogun | x1 | -7/Factory Enh. Autogun | x1 | -6/Factory Enh. Autogun | x1 | -6/Factory Lrn. Tractor Beam | x2 | -5/Factory Alien Tech Used ----------------- Core Regenerator Integrated Reactor Transdimensional Reconstructor Core Cannon Integrity Redistributor Matter Drive Achievements -------------- None Challenges ------------ None RPGLIKE | -11 -10 -10 -9 -9 -9 -8 -8 -7 -7 -7 -7 -6 -6 -6 -6 -6 -5 -5 -5 -5 -5 -5 -4 -4 -4 -3 -3 -2 -2 -2 --------- Run | Scr Mat Min Mat Min Exi Min Mat Fac Low Low Zio Pro Fac Low Low Dat Pro Fac Ext Cet Arc Hub Fac Arm Lab Res Tes Res Qua Sec Levels Raised 33 | . 1 1 4 1 . 1 3 4 . 1 . 1 2 . . . 2 . 1 1 . 1 1 . 1 2 . 2 2 1 XP Earned 53259 | 3000 2618 1154 6234 1349 139 1550 4703 5439 255 726 152 2443 1739 393 589 511 1548 1056 1122 844 237 1512 1523 845 1221 2233 1165 2414 2436 2109 XP Spent 52370 | 3000 800 1625 1200 . 6560 . 6150 300 . 200 1100 5500 3250 60 1360 . 1290 300 . 3200 . 1400 100 1250 . 4900 . 3000 2300 3525 Upgrades 96 | 10 1 10 5 . 16 . 4 1 . 1 1 2 3 2 3 . 4 1 . 1 . 4 2 1 . 2 . 3 3 16 Power Slot 1 | . . . . . 1 . . . . . . . . . . . . . . . . . . . . . . . . . Propulsion Slot 4 | 1 . . . . 1 . . . . . 1 . . . . . . . . . . . . . . 1 . . . . Utility Slot 11 | 1 . . 1 . 2 . 3 . . . . 2 . . . . . . . 1 . . . . . 1 . . . . Weapon Slot 5 | 1 1 . . . . . . . . . . . 2 . . . . . . . . . . . . . . 1 . . Core Integrity 19 | . . . . . . . . . . . . . . 2 . . . . . . . . 2 . . . . . . 15 Heat Dissipation 11 | 1 . . 4 . . . 1 . . . . . . . 2 . 3 . . . . . . . . . . . . . Energy Generation 1 | . . . . . . . . 1 . . . . . . . . . . . . . . . . . . . . . . Mass Support 8 | 2 . . . . . . . . . . . . . . . . . 1 . . . 2 . . . . . 2 1 . Inventory Capacity 6 | 2 . . . . . . . . . . . . 1 . 1 . . . . . . . . 1 . . . . . 1 Sensor Range 10 | . . 10 . . . . . . . . . . . . . . . . . . . . . . . . . . . . Terrain Scan Density 8 | . . . . . 8 . . . . . . . . . . . . . . . . . . . . . . . . . Ranged Accuracy 5 | . . . . . 2 . . . . . . . . . . . 1 . . . . . . . . . . . 2 . Melee Accuracy 1 | . . . . . . . . . . 1 . . . . . . . . . . . . . . . . . . . . Hack Attack % 2 | 1 . . . . 1 . . . . . . . . . . . . . . . . . . . . . . . . . Hack Defense % 2 | 1 . . . . 1 . . . . . . . . . . . . . . . . . . . . . . . . . KI Resistance % 2 | . . . . . . . . . . . . . . . . . . . . . . 2 . . . . . . . . Protomatter Created 13402 | . 235 39 523 47 . 110 778 916 28 279 . 568 751 345 389 . 488 449 652 201 89 965 393 546 . 358 533 490 1261 1969 Integrity Restored 18444 | . 558 213 924 141 . 117 1318 1921 54 503 . 1024 940 934 450 . 509 459 405 535 . 1592 952 1036 . 285 363 253 1230 1728 Core 14797 | . 558 213 804 141 . 117 1043 1642 41 432 . 881 759 659 364 . 391 395 289 339 . 1576 552 607 . 185 302 197 719 1591 Parts 3647 | . . . 120 . . . 275 279 13 71 . 143 181 275 86 . 118 64 116 196 . 16 400 429 . 100 61 56 511 137 Protomatter Decayed 8354 | . 49 . 128 . . . 269 258 139 110 . 288 481 20 278 . 277 177 511 321 156 708 67 178 . 1376 404 234 842 1083 Game ------ Seed ImprovedReflectiveMaul Manual? 0 Play Time 03:32:03 Cumulative 111.2 hours Start 2019.12.21 @ 18:44:28 End 2019.12.22 @ 19:29:54 Sessions 11 Manual Loads 0 Difficulty Rogue Special Mode Winter2019/RPGLIKE Game No. 205 Rogue 205 Adventurer 0 Explorer 0 Win Type - Total 2 Types 2/0/0/0/0/0/0 Lore% 88 Gallery% 84 Achievement% 64 Wizard Run 0 Options --------- ASCII 0 Keyboard 0 Movement Numpad Keybinds 0 Fullscreen 1 Font 24/Smallcaps Map View 76x50 Tactical HUD 1 Map Filters NONE Filters NONE Steam 1 RUN: 56f2dbc2-6854-49a2-84c1-fce23807dac0